Cogmind - Beta 15 @@@ ROGUE MODE // 2025.06.26 @ 23:16:44 Player: KTG-V3 Result: Destroyed by S-43 Plague with Heavy Machine Gun Performance ------------- Evolutions (7) 3500 Regions Visited (30) 6000 Robots Destroyed (406) 2030 Value Destroyed (24802) 24802 Prototype IDs (41) 820 Alien Tech Used (0) 0 Bonus (17786) 17786 TOTAL SCORE: 54938 Bonus ------- High Alert Combat Kills 1719 Follower Combat Kills 7190 Entered Garrisons 1600 Used RIF Installer 4500 Network Hubs Disabled 800 Built Enhanced Grunts 300 A7 Reached Mainframe 300 Met R17 at Cetus 500 Met R17 at Research 2000 Friendly Fire -1123 Cogmind --------- Core Integrity 0/1300 Matter 300/300 Energy 100/100 System Corruption 41% Temperature Cool (0) Movement Core (1400) Ox27 Location -3/Garrison Parts ------- > --- POWER (2) -------- (None) > --- PROPULSION (6) --- (None) > --- UTILITY (11) ----- Advanced Coolant Injector Huge Storage Unit Advanced Target Analyzer Graphene Brace Relay Coupler [NC] (13) > --- WEAPON (2) ------- (None) > --- INVENTORY (25) --- Experimental Coolant Injector Experimental Energy Well (600) Improved Kinecellerator Quantum Capacitor Advanced Weapon Cycler Experimental EM Shield Advanced Force Field Relay Coupler [NC] (33) Relay Coupler [NC] (28) Relay Coupler [Grunt] (29) Relay Coupler [Proto] (10) Relay Coupler [Proto] (10) Relay Coupler [Proto] (9) Compact HERF Cannon Neutron Cannon Improved Potential Cannon Omega Cannon Advanced Remote Datajack Advanced Remote Datajack Peak State ------------ > --- POWER ------------ Cooled Antimatter Reactor Quantum Reactor > --- PROPULSION ------- Armored Heavy Treads Armored Heavy Treads Improved Heavy Siege Treads > --- UTILITY ---------- Experimental Heat Sink Advanced Coolant Injector Huge Storage Unit Experimental Targeting Computer Quantum Capacitor Advanced Transmission Jammer Relay Coupler [Swarmer] Relay Coupler [Grunt] Relay Coupler [Sentry] Relay Coupler [Proto] > --- WEAPON ----------- Omega Cannon > --- INVENTORY -------- Compact Particle Reactor Centrium Heavy Treads Advanced Heat Sink Advanced Heat Sink Advanced Coolant Injector Advanced Energy Well Advanced Terrain Scan Processor Quantum Capacitor Advanced Weapon Cycler Graphene Brace Experimental EM Shield Advanced Force Field Relay Coupler [NC] Relay Coupler [NC] Relay Coupler [Sentry] Relay Coupler [Proto] Neutron Cannon Nova Cannon Hardcell Cannon Compact Mass Driver Compact Mass Driver Improved Remote Datajack Advanced Remote Datajack [Rating: 170] Favorites ----------- Power Quantum Reactor Engine Cooled Ion Engine Power Core Neutrino Core Reactor Quantum Reactor Propulsion Light Treads Treads Light Treads Leg Myomer Leg Hover Unit Improved Antigrav System Utility Huge Storage Unit Device Seismic Detector Storage Huge Storage Unit Processor Experimental Targeting Computer Hackware Relay Coupler [Grunt] Protection Hardened Medium Armor Plating Weapon Heavy Plasma Cannon Energy Gun Gatling Laser Energy Cannon Heavy Plasma Cannon Ballistic Gun Assault Rifle Ballistic Cannon Gauss Cannon Launcher Heavy Missile Launcher Special Weapon Improved Remote Datajack Build | -11 -10 -10 -9 -9 -8 -8 -8 -8 -7 -7 -7 -7 -7 -7 -6 -6 -6 -6 -5 -5 -5 -5 -4 -4 -4 -4 -4 -3 -3 -3 ------- Run | Yrd Mat Min Mat Min Mat Gar Mat Gar Fac Was Fac Gar Fac Gar Fac Was Fac Gar Fac Gar Fac Gar Fac Ext Cet Arc Hub Res Tes Gar Slots Evolved 14 | . . . 2 . 2 . . . 2 . . . . . 2 . . . 2 . . . 2 . . . . 2 . . Power 1 | . . . . . . . . . . . . . . . . . . . 1 . . . . . . . . . . . Propulsion 4 | . . . 1 . . . . . 1 . . . . . . . . . . . . . . . . . . 2 . . Utility 9 | . . . 1 . 2 . . . 1 . . . . . 2 . . . 1 . . . 2 . . . . . . . Weapon . | . . . . . . . . . . . . . . . . . . . . . . . . . . . . . . . Parts Attached 315 | 9 19 . 17 2 5 11 8 8 5 4 2 11 2 8 3 3 7 30 11 21 3 15 13 7 4 9 16 13 35 14 Power 32 | 1 1 . 4 . 1 1 . . . 1 . 1 . . . 1 3 . . 2 . 3 1 . 1 . 1 2 4 4 Engine 10 | 1 1 . 4 . 1 1 . . . . . . . . . . 2 . . . . . . . . . . . . . Core 2 | . . . . . . . . . . . . . . . . . . . . . . 2 . . . . . . . . Reactor 20 | . . . . . . . . . . 1 . 1 . . . 1 1 . . 2 . 1 1 . 1 . 1 2 4 4 Propulsion 62 | 2 5 . 3 . 2 3 4 6 1 2 . . . . . 2 . 10 3 2 . 1 . 2 2 2 1 2 3 4 Treads 55 | 2 5 . 3 . 2 3 4 6 1 2 . . . . . 2 . 7 3 2 . 1 . 2 2 2 1 2 3 . Leg 4 | . . . . . . . . . . . . . . . . . . 3 . . . . . . . . . . . 1 Wheel . | . . . . . . . . . . . . . . . . . . . . . . . . . . . . . . . Hover 3 | . . . . . . . . . . . . . . . . . . . . . . . . . . . . . . 3 Flight . | . . . . . . . . . . . . . . . . . . . . . . . . . . . . . . . Utility 145 | 3 5 . 4 . 1 4 2 . 3 1 1 8 . 5 3 . 2 15 6 10 3 9 9 5 . 7 10 7 18 4 Device 78 | 2 2 . 4 . 1 2 . . 2 1 1 3 . 2 2 . 1 2 5 3 2 3 6 4 . 4 6 6 12 2 Storage 8 | 1 3 . . . . 1 . . . . . . . . . . . . . . . . . . . . . . 3 . Processor 9 | . . . . . . . . . . . . . . . . . . 1 1 . 1 1 . . . . 1 1 2 1 Hackware 46 | . . . . . . 1 1 . 1 . . 5 . 3 1 . 1 12 . 6 . 5 3 . . 2 3 . 1 1 Protection 4 | . . . . . . . 1 . . . . . . . . . . . . 1 . . . 1 . 1 . . . . Artifact . | . . . . . . . . . . . . . . . . . . . . . . . . . . . . . . . Weapon 76 | 3 8 . 6 2 1 3 2 2 1 . 1 2 2 3 . . 2 5 2 7 . 2 3 . 1 . 4 2 10 2 Energy Gun 13 | 1 4 . 1 . . . . . . . . 1 . . . . . 2 . . . . . . 1 . . . 3 . Energy Cannon 35 | . 4 . 5 . 1 1 1 . . . . . 2 3 . . . 2 2 4 . . 1 . . . 2 2 3 2 Ballistic Gun 2 | 2 . . . . . . . . . . . . . . . . . . . . . . . . . . . . . . Ballistic Cannon 4 | . . . . . . . . . . . 1 . . . . . . . . 1 . . . . . . . . 2 . Launcher 8 | . . . . 2 . 2 1 1 . . . . . . . . 1 1 . . . . . . . . . . . . Special Weapon 14 | . . . . . . . . 1 1 . . 1 . . . . 1 . . 2 . 2 2 . . . 2 . 2 . Impact Weapon . | . . . . . . . . . . . . . . . . . . . . . . . . . . . . . . . Slashing Weapon . | . . . . . . . . . . . . . . . . . . . . . . . . . . . . . . . Piercing Weapon . | . . . . . . . . . . . . . . . . . . . . . . . . . . . . . . . Special Melee Weapon . | . . . . . . . . . . . . . . . . . . . . . . . . . . . . . . . Unidentified Prototypes 25 | . . . 3 . . . . . . . . . . . . . 1 . 1 . . . 1 . 2 1 2 1 12 1 Corrupted Parts 7 | . . . . . . . . . . . . . . . . . . . . . . . . . . 3 3 . . 1 System Corruption 31 | . . . . . . . . . . . . . . . . . . . . . . . . . . 7 14 . . 10 Parts Lost 80 | . 1 . . . . 4 . 2 . . . 3 . . 1 . . 19 1 1 . 3 1 3 . 2 8 . 4 27 Power 8 | . . . . . . . . . . . . 1 . . . . . . . . . . . . . . . . 1 6 Propulsion 18 | . . . . . . . . 1 . . . . . . . . . 6 . . . . . 2 . . 1 . 1 7 Utility 35 | . . . . . . 1 . . . . . 1 . . 1 . . 9 . 1 . 2 1 . . 2 5 . . 12 Weapon 19 | . 1 . . . . 3 . 1 . . . 1 . . . . . 4 1 . . 1 . 1 . . 2 . 2 2 Highest Loss Streak 12 | . 1 . . . . 2 . 1 . . . 1 . . 1 . . 6 1 1 . 1 1 1 . 2 5 . 2 12 To Critical Strikes 1 | . . . . . . . . . . . . . . . . . . . . . . . . . . . . . . 1 Average Backups 22 | 5 15 25 24 25 23 24 24 24 24 24 23 22 22 23 22 22 23 23 24 22 22 22 22 22 22 22 21 23 21 20 Power 1 | 1 2 3 2 2 2 2 2 2 2 2 2 1 1 1 1 1 2 2 2 1 1 1 1 1 1 1 1 1 1 1 Propulsion 3 | 3 6 9 8 8 8 8 7 5 5 3 2 2 2 2 2 2 2 1 1 2 2 2 2 2 1 1 2 2 1 . Utility 11 | . 1 6 5 6 4 5 9 11 11 12 13 13 15 14 14 14 14 15 14 12 13 14 14 14 15 15 12 13 13 13 Weapon 4 | . 4 7 8 9 9 7 5 4 4 4 4 3 3 3 3 3 3 2 4 5 4 3 3 3 3 3 3 4 4 4 Tool/Special . | . . . . . . . . . . . . . . . . . . . . . . . . . . . . . . . Unused Backups 105 | . 14 . 11 1 . 1 1 3 1 8 1 6 1 4 . . 1 6 4 5 1 3 1 1 4 2 3 2 9 11 Power 17 | . 2 . 3 . . . . . . 2 . 2 . . . . 1 . 3 . . 1 . . . 1 . . 2 . Propulsion 18 | . 4 . 1 . . . 1 . . 4 . . . . . . . . . 3 . . . . 2 . 1 1 1 . Utility 38 | . . . 1 1 . . . 2 1 2 . 3 1 3 . . . 5 1 . 1 1 1 . 1 1 . 1 3 9 Weapon 29 | . 8 . 6 . . 1 . 1 . . 1 1 . 1 . . . 1 . 2 . . . 1 1 . 1 . 3 1 Tool/Special 3 | . . . . . . . . . . . . . . . . . . . . . . 1 . . . . 1 . . 1 Average Slot Usage (%) 89 | . 99 100 99 100 98 98 100 99 98 87 83 83 84 84 85 85 84 87 93 87 87 87 83 83 83 83 86 89 81 63 Engine 3 | . 14 14 11 11 9 9 9 9 7 . . . . . . . . . 4 1 . . . . . . . . . . Reactor 5 | . . . . . . . . . . 6 7 6 7 7 6 6 5 6 5 9 11 3 7 10 10 10 9 9 9 5 Treads 17 | . 27 28 32 33 26 27 27 27 28 18 15 15 15 15 13 12 13 19 18 11 11 11 10 9 9 9 10 18 14 3 Device 18 | . 14 14 21 22 34 34 24 14 15 15 15 13 15 15 19 20 20 10 11 18 22 18 22 20 21 24 23 20 18 21 Storage 6 | . 14 14 11 11 9 9 9 9 7 7 7 7 7 7 6 6 6 6 5 5 5 5 5 5 5 5 5 4 4 4 Hackware 18 | . . . . . . 1 11 18 23 23 23 23 23 23 25 26 24 28 33 26 23 26 24 26 26 22 23 19 20 12 Energy Gun 1 | . 13 . . . . . . . . . . 1 7 . . . . 3 3 . . . . . . . . . 1 . Energy Cannon 10 | . 12 28 21 21 18 16 17 13 10 11 14 10 1 13 12 12 8 7 1 5 9 9 5 5 5 5 8 8 6 3 Special Weapon 1 | . . . . . . . . 3 3 2 . 1 3 . . . 4 1 4 3 1 . 5 5 5 5 1 . . . Peak Build Rating 170 | 9 12 12 20 20 29 33 33 37 36 62 64 64 64 71 82 82 82 88 88 127 127 125 131 131 135 139 146 153 170 160 Average Rating 78 | 6 9 12 17 19 25 30 32 32 35 56 61 62 63 66 78 79 78 63 74 110 121 114 121 126 134 134 135 146 158 112 On Entrance 72 | . 7 12 12 19 20 29 32 33 31 36 62 63 64 64 68 82 78 77 58 83 124 120 110 120 131 135 139 129 153 159 Naked Turns . | . . . . . . . . . . . . . . . . . . . . . . . . . . . . . . . Heaviest Build 176 | 15 94 94 100 98 113 113 109 111 104 112 113 113 111 119 120 121 134 135 159 174 175 176 148 160 150 152 150 161 166 151 Greatest Support 225 | 40 40 40 60 60 60 60 60 60 88 140 140 140 140 140 140 140 140 140 116 135 135 145 145 150 160 160 160 210 225 200 Greatest Overweight (x) 31 | 2 2 2 1 1 1 1 1 1 1 1 . . . . . 1 . 6 1 1 1 1 1 1 . . . . . 31 Average Overweight (x) . | . . 2 1 1 1 1 1 1 1 . . . . . . . . . 1 . 1 . . . . . . . . 2 Largest Inventory Capacity 25 | 8 25 25 25 25 25 25 25 25 25 25 25 25 25 25 25 25 25 25 25 25 25 25 25 25 25 25 25 25 25 25 Average Capacity 24 | 7 17 25 25 25 25 25 25 25 25 25 25 25 25 25 25 25 25 25 25 25 25 25 25 25 25 25 25 25 25 25 Most Carried 25 | 7 25 25 25 25 25 25 25 25 25 25 25 25 25 25 25 25 25 25 25 25 25 25 25 25 25 25 25 25 25 25 Average Carried 23 | 5 15 24 24 25 23 24 24 24 24 24 24 24 24 24 24 24 24 23 24 24 24 24 24 23 24 24 24 24 24 23 Final Capacity 25 | 8 25 25 25 25 25 25 25 25 25 25 25 25 25 25 25 25 25 25 25 25 25 25 25 25 25 25 25 25 25 25 Final Carried 25 | 7 25 25 25 25 25 25 25 25 25 25 25 25 25 25 24 25 25 25 25 25 25 25 25 24 25 25 25 25 24 22 Class Distribution -------------------- 60% | Botlord-Mutant 22% | Mutant 14% | Bothacker-Mutant Dominant Class ---------------- Mutant | -10/Materials Mutant | -10/Mines Mutant | -9/Materials Mutant | -9/Mines Mutant | -8/Materials Scavenger-Mutant | -8/Garrison Mutant | -8/Materials Bothacker-Mutant | -8/Garrison Bothacker-Mutant | -7/Factory Bothacker-Mutant | -7/Waste Bothacker-Mutant | -7/Factory Bothacker-Mutant | -7/Garrison Botlord-Mutant | -7/Factory Botlord-Mutant | -7/Garrison Botlord-Mutant | -6/Factory Botlord-Mutant | -6/Waste Botlord-Mutant | -6/Factory Botlord-Mutant | -6/Garrison Botlord-Mutant | -5/Factory Botlord-Mutant | -5/Garrison Botlord-Mutant | -5/Factory Botlord-Mutant | -5/Garrison Botlord-Mutant | -4/Factory Botlord-Mutant | -4/Extension Botlord-Mutant | -4/Cetus Botlord-Mutant | -4/Archives Botlord-Mutant | -4/Hub_04(d) Botlord-Mutant | -3/Research Botlord-Mutant | -3/Testing Botlord-Mutant | -3/Garrison Resources | -11 -10 -10 -9 -9 -8 -8 -8 -8 -7 -7 -7 -7 -7 -7 -6 -6 -6 -6 -5 -5 -5 -5 -4 -4 -4 -4 -4 -3 -3 -3 ----------- Run | Yrd Mat Min Mat Min Mat Gar Mat Gar Fac Was Fac Gar Fac Gar Fac Was Fac Gar Fac Gar Fac Gar Fac Ext Cet Arc Hub Res Tes Gar Matter Collected 10951 | 351 556 10 400 63 123 192 345 436 181 85 66 389 68 403 75 163 203 1444 333 604 183 765 437 514 172 149 461 291 875 614 Remotely . | . . . . . . . . . . . . . . . . . . . . . . . . . . . . . . . Salvage Created 21901 | 195 969 173 1346 45 394 543 928 566 101 1353 298 906 . 228 351 1158 138 1140 421 1167 1009 1211 1126 1098 . 320 983 446 2870 418 Parts 969 | 14 58 4 58 5 25 30 51 38 9 21 10 29 . 20 15 12 9 45 13 58 34 64 62 38 . 19 37 22 150 19 Haulers Intercepted 11 | . 2 . 4 . 1 . 2 . . . 1 . . . . . . . . . . . . . . . . 1 . . Recyclers Shooed 10 | 2 . . 4 . . . . . . . 1 . . . . . . . . . 1 . . . . . 1 1 . . Parts Field Recycled . | . . . . . . . . . . . . . . . . . . . . . . . . . . . . . . . Retrieved Matter . | . . . . . . . . . . . . . . . . . . . . . . . . . . . . . . . Parts Self-Destructed . | . . . . . . . . . . . . . . . . . . . . . . . . . . . . . . . Prevented . | . . . . . . . . . . . . . . . . . . . . . . . . . . . . . . . Kills | -11 -10 -10 -9 -9 -8 -8 -8 -8 -7 -7 -7 -7 -7 -7 -6 -6 -6 -6 -5 -5 -5 -5 -4 -4 -4 -4 -4 -3 -3 -3 ------- Run | Yrd Mat Min Mat Min Mat Gar Mat Gar Fac Was Fac Gar Fac Gar Fac Was Fac Gar Fac Gar Fac Gar Fac Ext Cet Arc Hub Res Tes Gar Combat Hostiles Destroyed 336 | . 21 2 17 15 7 20 14 17 4 4 3 13 . 8 5 4 1 22 5 24 8 20 16 14 . 1 13 7 41 10 Melee 1 | . . . . . . . . . . . . . . . . . . . . 1 . . . . . . . . . . Guns 18 | . 13 . . . . . . . . . . . . . . . . 1 . . . . . . . . . . 4 . Cannons 202 | . 3 1 12 . 5 5 14 9 1 2 3 13 . 4 4 2 1 11 5 12 7 20 9 7 . 1 12 6 27 6 AOE 65 | . 4 . 5 15 1 13 . 8 3 . . . . 4 . . . 4 . 5 . . 1 . . . . . 1 1 Classes Destroyed 23 | 3 4 . 2 1 2 2 2 2 . 1 . 1 . . 1 . . 1 . 1 . . . . . . . . . . Worker 6 | 1 2 . . . . . . . . . 1 . . . 1 . . . . . . . . . . . . 1 . . Builder 5 | . . . . . . . 1 . . . 1 . . . . . . . . . . . 1 1 . . 1 . . . Tunneler 9 | 6 1 . . . . . . . 1 . . . . . . . . . . . . . . . . . 1 . . . Hauler 11 | . 2 . 4 . 1 . 2 . . . 1 . . . . . . . . . . . . . . . . 1 . . Recycler 13 | 1 1 1 3 . . . 1 . . . 1 . . . . . . . 1 . 4 . . . . . . . . . Mechanic 1 | . . . . . . . . . . . . . . . . . . . . . . . 1 . . . . . . . Operator 9 | . . . 1 . . . 1 . . . . . . . . . . . . . . . . . . 7 . . . . Watcher 14 | . 3 . 4 . . . 2 . . . . . . . 1 . . . . . . . 3 . . . 1 . . . Swarmer 61 | . 9 . . 4 . 7 2 5 3 . . . . 4 . . 1 1 . 5 1 5 4 . . . 1 4 3 2 Cutter 6 | . . . . . . . . . . . . . . . . . . 3 . 2 . 1 . . . . . . . . Saboteur 3 | . . . . . . . . . . . . . . . . . . . . 3 . . . . . . . . . . Grunt 106 | . 12 2 14 . 2 8 6 5 . . . 9 . . 2 . . 5 3 5 . 4 4 6 . . 3 2 14 . Brawler 1 | . . . . . . . . 1 . . . . . . . . . . . . . . . . . . . . . . Duelist 3 | . . . . . . . . 1 . . . . . . . . . . . . . 1 . . . . . 1 . . Sentry 46 | . . . 3 . 3 3 4 3 . . 2 2 . 1 2 1 1 6 . 1 3 1 2 4 . 1 2 . . 1 Demolisher 1 | . . . . . . 1 . . . . . . . . . . . . . . . . . . . . . . . . Specialist 8 | . . . . . 1 . . . . . . . . . . . . 1 . 2 . 1 . . . . . . 3 . Hunter 24 | . . . . . . 1 1 1 . . . . . . . . . 5 . 4 . 2 1 1 . . 2 . 4 2 Programmer 58 | . . . . . . . 1 1 1 . 1 3 . 3 1 . 1 1 1 3 4 6 4 2 . . 4 . 17 4 Heavy 3 | . . . . . 1 . . . . . . . . . . . . . 1 . . . 1 . . . . . . . Behemoth 4 | . . . . . . . . . . . . . . . 1 . . 1 . . . . . 1 . . . . . 1 Compactor 8 | . . . . . . . . . . 4 . . . . . 4 . . . . . . . . . . . . . . Lightning 2 | . . . . . . . . . . . . . . . . . . . . . . . . . . . 2 . . . Assembled 11 | . . . . 11 . . . . . . . . . . . . . . . . . . . . . . . . . . Surgeon 1 | . . . . . . . . . . . . 1 . . . . . . . . . . . . . . . . . . Wasp 1 | . . . . . . . . . . 1 . . . . . . . . . . . . . . . . . . . . Martyr 2 | . . . . . . . . . . 2 . . . . . . . . . . . . . . . . . . . . Best Kill Streak 11 | 3 4 2 4 11 3 8 4 4 3 2 3 3 . 4 2 1 1 5 2 4 3 4 6 2 . 1 3 4 6 3 Combat Bots Only 11 | . 4 1 3 11 3 8 3 4 3 2 3 3 . 4 2 1 1 5 2 4 2 4 6 2 . 1 3 4 6 3 Max Kills in Single Turn 6 | 1 3 1 2 6 2 3 1 2 3 1 1 2 . 2 2 1 1 2 1 4 1 1 1 1 . 1 1 1 2 1 Gunslinging . | . . . . . . . . . . . . . . . . . . . . . . . . . . . . . . . Exploded 6 | . 2 . 1 6 1 3 . 2 3 . . . . 2 . . . 2 . 4 . . 1 . . . . . 1 1 Melee 1 | . . . . . . . . . . . . . . . . . . . . 1 . . . . . . . . . . Uniques/NPCs Destroyed . | . . . . . . . . . . . . . . . . . . . . . . . . . . . . . . . Combat | -11 -10 -10 -9 -9 -8 -8 -8 -8 -7 -7 -7 -7 -7 -7 -6 -6 -6 -6 -5 -5 -5 -5 -4 -4 -4 -4 -4 -3 -3 -3 -------- Run | Yrd Mat Min Mat Min Mat Gar Mat Gar Fac Was Fac Gar Fac Gar Fac Was Fac Gar Fac Gar Fac Gar Fac Ext Cet Arc Hub Res Tes Gar Hostile Shots Fired 2388 | . 71 5 41 12 20 55 83 53 7 . 92 70 9 46 35 . 41 447 76 140 45 106 81 46 5 4 202 45 310 241 Missed 664 | . 28 3 8 4 3 12 28 12 1 . 40 18 7 16 15 . 17 133 15 36 13 22 23 19 1 1 65 10 64 50 Hits 1724 | . 43 2 33 8 17 43 55 41 6 . 52 52 2 30 20 . 24 314 61 104 32 84 58 27 4 3 137 35 246 191 Melee 27 | . . . . . 1 . . 3 1 . . . . . . . . 9 . 6 . 4 . . . . . 3 . . Projectile 1697 | . 43 2 33 8 16 43 55 38 5 . 52 52 2 30 20 . 24 305 61 98 32 80 58 27 4 3 137 32 246 191 AOE 9 | . . . . . . 5 . . 1 . . . . . . . . 2 . 1 . . . . . . . . . . Critical Strikes 68 | . 1 . . . 1 . 2 1 . . . 1 . 1 1 . 1 9 6 1 3 1 . 2 1 . 8 3 17 8 Actively Blocked 7 | . . . . . . . . . . . . . . . . . . 4 . . . 1 . . . . . . . 2 Part Disruptions 5 | . . . . . . . . . . . . 1 . 1 . . . 2 . . . . . . . . . . 1 . Actively Blocked 1 | . . . . . . . . . . . . 1 . . . . . . . . . . . . . . . . . . Damage Taken 26971 | . 472 26 419 115 245 660 745 728 115 . 442 714 68 421 301 10 212 4130 1069 1088 363 936 1235 736 140 84 2758 624 3917 4198 Core 3168 | . 54 . 101 20 13 115 131 44 . . 54 94 . 12 . . 34 330 121 65 12 51 262 86 14 . 251 90 245 969 Absorbed by Shields 3554 | . . . 20 . 93 43 122 . . . . . . 22 . . . 160 290 665 321 460 . 19 63 . . 190 543 543 Reduced by Siege Mode 1111 | . . . . . . . . . . . . . . . . . . 304 31 20 13 85 43 . . . 311 18 213 73 Ignored by Resistances 942 | . . . . . . . . . . . . . . . . . . . . . . . . . . . 171 . 771 . Regen/Repaired (Parts) 1484 | . 96 . 147 . 60 . . . . 10 86 . 181 182 . . . . 220 . . . . . . . . . 502 . Core Remaining (%) 68 | 100 . 78 . 69 . . . 44 . . . . . 77 . . . 57 . . . 75 . . . . 46 . . . Volleys Fired 1850 | 19 51 7 44 6 14 46 54 55 8 90 28 92 12 43 17 47 29 141 51 86 33 84 109 124 8 59 121 32 267 73 Largest 2 | 2 2 2 2 1 2 2 2 2 2 2 2 2 2 2 2 2 1 2 2 2 2 2 1 1 1 1 2 2 2 1 Hottest 240 | 60 120 112 150 33 150 150 150 155 155 155 155 155 120 180 180 180 90 180 171 240 240 240 120 120 120 120 180 226 226 200 Shots Fired 2510 | 38 101 14 83 6 28 67 107 85 14 121 55 153 13 58 32 84 31 201 60 91 58 137 109 124 8 59 165 58 280 70 Gun 201 | 38 78 . . . . . . . . . . 1 1 . . . . 22 7 . . . . . . . . . 54 . Cannon 1995 | . 23 14 83 . 28 58 106 67 12 116 55 131 5 51 31 75 19 128 36 68 52 114 94 81 4 58 144 56 217 69 Launcher 37 | . . . . 6 . 9 1 10 1 . . . . 2 . . . 7 . 1 . . . . . . . . . . Special 277 | . . . . . . . . 8 1 5 . 21 7 5 1 9 12 44 17 22 6 23 15 43 4 1 21 2 9 1 Kinetic 73 | 34 12 . . . . . . . . . 1 4 5 . . . . . . . . . . . . . . . . 17 Thermal 1739 | . 4 . 13 . 24 43 106 67 12 116 54 128 1 51 31 75 19 150 34 40 52 114 63 42 4 58 144 56 196 42 Explosive 37 | . . . . 6 . 9 1 10 1 . . . . 2 . . . 7 . 1 . . . . . . . . . . Electromagnetic 384 | 4 85 14 70 . 4 15 . . . . . . . . . . . . 9 28 . . 31 39 . . . . 75 10 Robot Hit Streak 29 | 14 13 12 14 . 5 17 15 8 10 14 8 28 3 5 8 16 5 17 11 11 7 20 12 12 12 5 18 29 18 13 Robot Miss Streak 7 | 3 3 2 2 3 2 3 2 4 1 5 3 2 1 2 2 3 2 4 1 3 3 4 7 2 2 5 2 3 5 6 Penetration Max . | . . . . . . . . . . . . . . . . . . . . . . . . . . . . . . . Secondary Targets 1 | . 1 . . . . . . . . . . . . . . . . . . . . . . . . . . . . . Max Gunslinging Chain 1 | . 1 . . . . . . . . . . . . . . . . . . . . . . . . . . . . . Capacitor 512 | . . . . . . . . . . . . . . . . . . . . . . . 94 81 4 58 8 . 243 24 Shots Hit Robots 1528 | 25 62 10 52 . 20 30 71 44 9 91 36 71 7 25 20 64 14 138 40 56 35 91 58 88 3 33 88 30 173 44 Core Hits 604 | 9 37 3 33 27 10 25 28 25 6 16 9 28 1 11 11 11 2 54 16 23 14 31 21 19 1 12 34 12 60 15 Critical Kills 21 | . . . . . . . . . . 2 . . . . 2 2 . 3 . . 1 . 2 2 . 2 1 1 2 1 Critical Parts Destroyed . | . . . . . . . . . . . . . . . . . . . . . . . . . . . . . . . Critical Strikes 25 | . . . 1 . . 1 . . . 2 . 1 . . 2 2 . 3 . . 1 . 2 3 . 2 1 1 2 1 Meltdown 21 | . . . . . . . . . . 2 . . . . 2 2 . 3 . . 1 . 2 2 . 2 1 1 2 1 Blast 1 | . . . . . . . . . . . . 1 . . . . . . . . . . . . . . . . . . Corrupt 3 | . . . 1 . . 1 . . . . . . . . . . . . . . . . . 1 . . . . . . Melee Attacks . | . . . . . . . . . . . . . . . . . . . . . . . . . . . . . . . Impact . | . . . . . . . . . . . . . . . . . . . . . . . . . . . . . . . Slashing . | . . . . . . . . . . . . . . . . . . . . . . . . . . . . . . . Piercing . | . . . . . . . . . . . . . . . . . . . . . . . . . . . . . . . Sneak Attacks . | . . . . . . . . . . . . . . . . . . . . . . . . . . . . . . . Combat Hostiles . | . . . . . . . . . . . . . . . . . . . . . . . . . . . . . . . Follow-up Attacks . | . . . . . . . . . . . . . . . . . . . . . . . . . . . . . . . Damage Inflicted 52317 | 331 1278 236 1757 1138 595 2065 1865 1921 481 2408 1053 1569 49 1018 720 1959 211 3757 1080 2134 1454 3399 2196 2035 85 1483 2845 997 7036 3162 Guns 2812 | 331 613 . . . . . . . . . . . 23 . . . . 344 175 . . . . . . . . . 1326 . Cannons 43251 | . 351 236 1513 . 501 707 1865 898 182 2408 1053 1569 26 710 720 1959 211 2890 892 1753 1454 3399 2110 2022 85 1483 2845 997 5626 2786 Explosions 6225 | . 314 . 244 1138 94 1358 . 1023 299 . . . . 308 . . . 523 . 381 . . 86 . . . . . 84 373 Melee . | . . . . . . . . . . . . . . . . . . . . . . . . . . . . . . . Ramming 29 | . . . . . . . . . . . . . . . . . . . 13 . . . . 13 . . . . . 3 Kinetic 1998 | 282 89 . . . . . . . . . . 66 26 . . . . . . . . . . . . . . . . 1535 Thermal 37814 | . 368 . 519 . 519 500 1865 898 182 2408 1053 1503 23 710 720 1959 211 3234 883 1277 1454 3399 1284 1001 85 1483 2845 997 5064 1370 Explosive 4843 | . . . . 1138 . 1358 . 1023 299 . . . . 308 . . . 523 . 194 . . . . . . . . . . Electromagnetic 7633 | 49 821 236 1238 . 76 207 . . . . . . . . . . . . 184 663 . . 912 1021 . . . . 1972 254 Impact . | . . . . . . . . . . . . . . . . . . . . . . . . . . . . . . . Slashing . | . . . . . . . . . . . . . . . . . . . . . . . . . . . . . . . Piercing . | . . . . . . . . . . . . . . . . . . . . . . . . . . . . . . . Highest Corruption 41 | . . . . . . . 2 2 . . . . . 1 . 32 32 33 2 2 7 7 2 2 2 3 22 . 21 41 Average Corruption 11 | . . . . . . . 1 2 . . . . . 1 . 17 32 32 1 2 4 6 1 2 2 1 7 . 12 29 Corruption Purged 14 | . . . . . . . . . . . . . . . . . . . . . 5 . . . . 9 . . . . Corruption Blocked . | . . . . . . . . . . . . . . . . . . . . . . . . . . . . . . . Effects 582 | . . . . . . . . 15 . . . . . 14 . 17 48 149 6 28 15 62 9 31 5 5 47 . 76 55 Message Errors 148 | . . . . . . . . 4 . . . . . 5 . 6 9 33 2 10 3 12 5 11 . . 16 . 19 13 Matter Fused 126 | . . . . . . . . 2 . . . . . 5 . 1 13 31 3 3 5 14 1 11 2 2 5 . 17 11 Heat Flow Errors 69 | . . . . . . . . 1 . . . . . . . 2 10 12 . 2 1 11 1 1 1 2 5 . 14 6 Energy Discharges 69 | . . . . . . . . 4 . . . . . 2 . 1 6 22 . 4 3 5 2 2 . . 4 . 6 8 Parts Rejected 9 | . . . . . . . . 1 . . . . . . . 1 . 1 . . . 2 . . . . 1 . 2 1 Parts Fused 7 | . . . . . . . . . . . . . . . . 1 . 1 . . 1 1 . 1 . . 2 . . . Data Loss (minor) 66 | . . . . . . . . 1 . . . . . 2 . 2 3 18 . 7 . 10 . 3 2 . 8 . 7 3 Data Loss (major) 24 | . . . . . . . . 1 . . . . . . . 1 2 2 . 1 . 5 . 1 . 1 2 . 4 4 Misfires 19 | . . . . . . . . 1 . . . . . . . . 3 9 . 1 1 1 . . . . 2 . . 1 Alerts 13 | . . . . . . . . . . . . . . . . . 1 4 . . 1 1 . 1 . . . . 2 3 Misdirections 8 | . . . . . . . . . . . . . . . . 2 . 1 . . . . . . . . . . 4 1 Weapon Failures 24 | . . . . . . . . . . . . . . . . . 1 15 1 . . . . . . . 2 . 1 4 Overload Shots . | . . . . . . . . . . . . . . . . . . . . . . . . . . . . . . . Overflow Damage 1628 | . 40 3 24 87 . 103 51 71 . . . . . 23 . . 26 44 36 76 158 100 105 102 . 146 89 6 263 75 Projectiles 1325 | . . 3 24 . . 29 51 36 . . . . . 23 . . 26 31 36 76 158 100 105 102 . 146 89 6 209 75 Explosions 303 | . 40 . . 87 . 74 . 35 . . . . . . . . . 13 . . . . . . . . . . 54 . Melee . | . . . . . . . . . . . . . . . . . . . . . . . . . . . . . . . Knockbacks 1 | . . . . . . . . . . . . . 1 . . . . . . . . . . . . . . . . . Impact . | . . . . . . . . . . . . . . . . . . . . . . . . . . . . . . . Kinetic 1 | . . . . . . . . . . . . . 1 . . . . . . . . . . . . . . . . . Secondary . | . . . . . . . . . . . . . . . . . . . . . . . . . . . . . . . Self-Inflicted Damage 496 | . 63 . 40 . . . . 79 . . . . . . . . . 128 . 116 . . . . . . . . 69 1 Shots 14 | . 2 . 1 . . . . 2 . . . . . . . . . 5 . 3 . . . . . . . . 1 . Rammed 4 | . . . . . . . . . . . . . . . . . . . 1 . . . . 1 . . . . . 2 Targets Rammed 4 | . . . . . . . . . . . . . . . . . . . 1 . . . . 1 . . . . . 2 Kicked . | . . . . . . . . . . . . . . . . . . . . . . . . . . . . . . . Crushed . | . . . . . . . . . . . . . . . . . . . . . . . . . . . . . . . Highest Temperature 413 | . 147 102 137 . . . 165 165 3 . 51 45 . 68 225 294 266 364 335 241 232 400 280 236 70 225 394 193 269 413 Average Temperature 80 | . 46 42 57 . . . 66 54 2 . 28 10 . 17 74 33 113 91 129 79 83 93 74 71 46 87 115 60 97 107 Received Heat Transfer 4054 | . 147 15 186 6 84 114 255 171 . . 105 168 . 66 132 6 48 533 339 55 44 228 72 64 . . 93 62 403 658 Effects 5 | . . . . . . . . . . . . . . . . . . 1 1 . . 1 . 1 . . 1 . . . Energy Bleed 4 | . . . . . . . . . . . . . . . . . . 1 1 . . 1 . 1 . . . . . . Matter Decay 1 | . . . . . . . . . . . . . . . . . . . . . . . . . . . 1 . . . Siege Activations 38 | . . . . . . . . . . . . . . . . . . 3 1 3 2 5 7 1 . . 1 1 12 2 Total Turns 581 | . . . . . . . . . . . . . . . . . . 83 11 27 41 60 39 3 . . 88 38 169 22 Longest Duration 88 | . . . . . . . . . . . . . . . . . . 50 11 14 35 18 10 3 . . 88 38 88 19 Martial Activations . | . . . . . . . . . . . . . . . . . . . . . . . . . . . . . . . Shielding Activations . | . . . . . . . . . . . . . . . . . . . . . . . . . . . . . . . Robots Disrupted 2 | . . . 1 . . . . . . . . . . . . . . . . . . . . . . . . . 1 . Combat Hostiles 2 | . . . 1 . . . . . . . . . . . . . . . . . . . . . . . . . 1 . Robots Corrupted 27 | . 1 1 . . . 2 . . . . . . . . . . . . . 5 . . 4 5 . . . . 7 2 Combat Hostiles 27 | . 1 1 . . . 2 . . . . . . . . . . . . . 5 . . 4 5 . . . . 7 2 Parts Fried 55 | 1 1 3 2 . 1 2 . . . . . . . . . . . . 2 9 . . 9 7 . . . . 13 5 Impact Corruptions . | . . . . . . . . . . . . . . . . . . . . . . . . . . . . . . . Robots Melted 28 | . . . . . 1 . . . . 2 . . . . 2 2 . 6 . 1 1 . 2 2 . 2 2 2 2 1 Combat Hostiles 23 | . . . . . 1 . . . . 2 . . . . 1 2 . 6 . 1 1 . 2 2 . . 1 1 2 1 Parts Melted 102 | . . . . . 2 . 10 . . 2 4 6 . 1 5 2 1 10 1 5 3 2 5 5 . 2 16 5 13 2 Heat Transferred 44854 | . 511 . 707 . 779 740 2701 1366 298 4425 1766 2453 50 920 1100 3050 300 4833 1400 1039 1184 2644 1012 832 74 1295 3732 1333 3935 375 Parts Sabotaged 3 | . . . . . . . . . . . . . . . . . . . . 3 . . . . . . . . . . Parts Stolen . | . . . . . . . . . . . . . . . . . . . . . . . . . . . . . . . Parts Stripped . | . . . . . . . . . . . . . . . . . . . . . . . . . . . . . . . Power Chain Reactions 14 | . 6 . 4 . 1 . . . . . . . . . . . . . . 1 . . 1 . . . . . 1 . Alert | -11 -10 -10 -9 -9 -8 -8 -8 -8 -7 -7 -7 -7 -7 -7 -6 -6 -6 -6 -5 -5 -5 -5 -4 -4 -4 -4 -4 -3 -3 -3 ------- Run | Yrd Mat Min Mat Min Mat Gar Mat Gar Fac Was Fac Gar Fac Gar Fac Was Fac Gar Fac Gar Fac Gar Fac Ext Cet Arc Hub Res Tes Gar Maximum Alert Level 4 | . 1 . . . . 2 1 4 3 1 . 3 2 4 3 1 . 4 3 4 2 3 2 1 1 . . . 1 1 Low Security (%) 48 | 100 87 100 100 100 100 26 . . . 90 100 9 28 14 . 39 100 8 . . . . 66 77 83 100 100 100 69 . Level 1 18 | . 12 . . . . 30 100 29 . 9 . 32 . 5 . 60 . 16 . . 50 15 11 22 16 . . . 30 99 Level 2 11 | . . . . . . 42 . 9 15 . . 31 71 12 . . . 21 31 24 49 26 22 . . . . . . . Level 3 18 | . . . . . . . . 49 84 . . 26 . 49 100 . . 35 68 67 . 58 . . . . . . . . Level 4 2 | . . . . . . . . 11 . . . . . 17 . . . 18 . 8 . . . . . . . . . . Level 5 . | . . . . . . . . . . . . . . . . . . . . . . . . . . . . . . . High Security . | . . . . . . . . . . . . . . . . . . . . . . . . . . . . . . . Max Security . | . . . . . . . . . . . . . . . . . . . . . . . . . . . . . . . Peak Influence 1523 | 10 283 60 129 106 152 694 366 1269 873 235 161 1073 562 1432 891 295 150 1523 947 1117 585 1025 537 373 232 49 172 87 324 324 Initial 799 | . . 23 9 45 . 64 338 235 665 235 . 67 562 44 751 295 89 34 799 641 585 263 537 1 188 23 . 87 32 237 Average 342 | 1 75 17 52 14 58 407 281 793 765 65 68 523 389 802 839 214 49 714 762 817 423 698 232 97 144 8 89 21 128 285 Influence Increases 17539 | 40 742 85 547 145 310 670 538 1114 559 . 670 1146 71 1478 468 13 274 1759 936 706 253 992 468 757 213 181 1032 205 921 246 Destroy 0b10 Robot/C 8059 | . 420 40 340 80 180 400 280 680 320 . 300 480 40 560 220 . 60 605 375 360 120 471 240 324 84 48 336 84 492 120 Destroy 0b10 Robot/NC 418 | 40 45 5 60 . 10 . 35 . 20 . 30 5 5 . 20 . . 5 16 . 16 7 18 12 6 27 30 6 . . Destroy Leader 1154 | . 90 10 86 10 64 20 98 40 52 . 82 10 2 40 64 . 20 50 58 8 40 48 48 32 . . 78 14 72 18 Allied During Kill 2204 | . . . . . 36 . . 109 78 . 228 106 22 434 125 . 5 105 285 3 . 75 13 241 90 75 165 . 7 2 Successful Hack 380 | . 36 . 21 . 10 . 19 . 5 . 14 30 . 28 . . 14 16 . . 5 9 26 23 8 . 21 30 65 . Select Force Hacks 150 | . 60 . . . . . . . . . . . . . . . . . . . . . . . . . 90 . . . Disable Machine 783 | . 45 . 15 . . 30 . 15 75 . 15 60 . 45 30 . 15 30 48 36 24 21 27 63 9 9 54 9 99 9 Anti-Garrison Action 2433 | . . . . . . 100 . 100 . . . 400 . 300 . . 150 863 . 189 . 301 . . . . . . . 30 Destroy Structure 1583 | . 31 . 10 40 10 90 46 140 9 . 1 55 2 71 9 13 10 61 130 62 36 60 96 62 16 22 258 44 150 49 Partial Spotted 30 | . . . . 15 . . 15 . . . . . . . . . . . . . . . . . . . . . . . Lose Combat Pursuer 345 | . 15 30 15 . . 30 45 30 . . . . . . . . . 24 24 48 12 . . . . . . 18 36 18 Influence Decreases 17346 | 40 682 120 455 262 211 75 870 207 1154 674 574 169 1081 109 1057 728 353 285 1542 506 994 343 1489 424 491 240 866 313 663 369 Entered New Map 6033 | . . 37 16 72 . 35 356 127 604 439 . 29 511 19 681 548 39 15 724 276 532 113 488 3 149 36 . 79 26 79 Time Decay 7323 | 40 431 83 439 170 131 . 514 . 490 235 359 . 270 . 206 180 294 . 428 . 422 . 530 363 262 134 551 234 557 . Lost Part 748 | . 10 . . . . 40 . 20 . . . 30 . . 10 . . 190 10 10 . 30 10 18 . 10 50 . 40 270 Lost Ally 2160 | . . . . 20 80 . . 60 60 . 215 110 . 90 160 . 20 80 230 220 40 200 70 40 80 60 265 . 40 20 Purge Threat 1082 | . 241 . . . . . . . . . . . 300 . . . . . 150 . . . 391 . . . . . . . Squads Dispatched 79 | . 3 . 1 1 5 . 1 . 3 . 5 . 2 . 4 . 4 . 9 . 5 . 7 4 . . 11 4 10 . Investigation 15 | . 3 . . 1 . . . . . . . . . . 1 . . . 1 . . . 2 2 . . 3 1 1 . Extermination 25 | . . . . . . . . . 2 . 2 . . . . . 2 . 2 . 2 . 3 . . . 5 . 7 . Reinforcement 22 | . . . 1 . 2 . . . . . 1 . 1 . 2 . . . 4 . . . 2 2 . . 3 3 1 . Assault 7 | . . . . . . . . . 1 . . . 1 . 1 . 2 . 2 . . . . . . . . . . . Garrison 10 | . . . . . 3 . 1 . . . 2 . . . . . . . . . 3 . . . . . . . 1 . Intercept . | . . . . . . . . . . . . . . . . . . . . . . . . . . . . . . . Searches Triggered . | . . . . . . . . . . . . . . . . . . . . . . . . . . . . . . . Construction Impeded 3 | . . . . . . . . . . . . . . . 1 . . . 2 . . . . . . . . . . . Haulers Reinforced 5 | . . . . . . . . . . . 1 . 1 . 1 . . . . . . . . . . . . 2 . . Active Scanning Responses . | . . . . . . . . . . . . . . . . . . . . . . . . . . . . . . . Cargo Convoy Interrupts . | . . . . . . . . . . . . . . . . . . . . . . . . . . . . . . . Alert ID Control Effect 11 | . . . . . . . . . . . . . . . . . . . . 3 . 3 . 3 1 . . . 1 . Stealth | -11 -10 -10 -9 -9 -8 -8 -8 -8 -7 -7 -7 -7 -7 -7 -6 -6 -6 -6 -5 -5 -5 -5 -4 -4 -4 -4 -4 -3 -3 -3 --------- Run | Yrd Mat Min Mat Min Mat Gar Mat Gar Fac Was Fac Gar Fac Gar Fac Was Fac Gar Fac Gar Fac Gar Fac Ext Cet Arc Hub Res Tes Gar Distress Signals 27 | . . . 2 . 3 . 4 . . . . . . . 1 . . . 4 . . . 3 1 2 . 1 4 2 . Communications Jammed 130 | . . . . . . . . . . . . . . . 19 . 1 . . . . . 2 67 2 2 19 . 18 . Distress Signals 121 | . . . . . . . . . . . . . . . 19 . . . . . . . . 67 2 2 16 . 15 . Times Spotted 704 | . 26 3 24 24 14 24 32 31 19 6 14 36 4 22 12 6 7 42 45 41 13 40 30 29 9 22 35 17 58 19 Peak Tracking Total 20 | . 4 2 5 20 4 6 6 6 5 3 3 7 2 4 3 2 2 4 8 9 3 8 4 4 5 2 7 3 5 8 Tactical Retreats 24 | . 1 1 1 . . 2 3 2 . . . . . . . . . 2 2 3 1 . . . . . . 1 3 2 Traps | -11 -10 -10 -9 -9 -8 -8 -8 -8 -7 -7 -7 -7 -7 -7 -6 -6 -6 -6 -5 -5 -5 -5 -4 -4 -4 -4 -4 -3 -3 -3 ------- Run | Yrd Mat Min Mat Min Mat Gar Mat Gar Fac Was Fac Gar Fac Gar Fac Was Fac Gar Fac Gar Fac Gar Fac Ext Cet Arc Hub Res Tes Gar Traps Triggered 54 | . 1 . . . . 6 1 6 1 . 1 2 1 . 1 . 1 7 . 10 2 8 1 . . . 1 . 1 3 Indirectly . | . . . . . . . . . . . . . . . . . . . . . . . . . . . . . . . Trap Hack Attempts . | . . . . . . . . . . . . . . . . . . . . . . . . . . . . . . . Triggered . | . . . . . . . . . . . . . . . . . . . . . . . . . . . . . . . Disarmed . | . . . . . . . . . . . . . . . . . . . . . . . . . . . . . . . Reprogrammed . | . . . . . . . . . . . . . . . . . . . . . . . . . . . . . . . Reused . | . . . . . . . . . . . . . . . . . . . . . . . . . . . . . . . Traps Extracted . | . . . . . . . . . . . . . . . . . . . . . . . . . . . . . . . Installed . | . . . . . . . . . . . . . . . . . . . . . . . . . . . . . . . Triggered . | . . . . . . . . . . . . . . . . . . . . . . . . . . . . . . . Machines | -11 -10 -10 -9 -9 -8 -8 -8 -8 -7 -7 -7 -7 -7 -7 -6 -6 -6 -6 -5 -5 -5 -5 -4 -4 -4 -4 -4 -3 -3 -3 ---------- Run | Yrd Mat Min Mat Min Mat Gar Mat Gar Fac Was Fac Gar Fac Gar Fac Was Fac Gar Fac Gar Fac Gar Fac Ext Cet Arc Hub Res Tes Gar Machines Disabled 105 | . 3 . 1 . . 4 . 3 5 . 1 12 . 7 2 . 2 12 4 7 2 8 3 7 1 1 6 1 11 2 Max in Single Turn 3 | . 2 . 1 . . 1 . 1 3 . . 2 . 1 . . 1 1 . 1 1 1 1 1 1 . 1 1 1 1 Garrison Access 3 | . . . . . . . . . . . . . . . . . 1 . . . . . 1 . . . . 1 . . Garrison Relay 30 | . . . . . . 2 . 2 . . . 5 . 4 . . . 8 . 3 . 5 . . . . . . . 1 Phase Generator 1 | . . . . . . . . . . . . 1 . . . . . . . . . . . . . . . . . . Network Hub 4 | . . . . . . . . . . . . . . . . . . . . . . . . . . . 4 . . . Machines Repaired . | . . . . . . . . . . . . . . . . . . . . . . . . . . . . . . . Machines Dismantled . | . . . . . . . . . . . . . . . . . . . . . . . . . . . . . . . Machines Sabotaged 3 | . . . . . . . . . . . . . . . . . . . . . . . . . . . 3 . . . Overloaded Fab Kills . | . . . . . . . . . . . . . . . . . . . . . . . . . . . . . . . Hacking | -11 -10 -10 -9 -9 -8 -8 -8 -8 -7 -7 -7 -7 -7 -7 -6 -6 -6 -6 -5 -5 -5 -5 -4 -4 -4 -4 -4 -3 -3 -3 --------- Run | Yrd Mat Min Mat Min Mat Gar Mat Gar Fac Was Fac Gar Fac Gar Fac Was Fac Gar Fac Gar Fac Gar Fac Ext Cet Arc Hub Res Tes Gar Machines Accessed 101 | . 11 . 5 1 3 1 5 1 4 . 6 3 4 1 . . 4 4 3 . 2 3 6 7 3 . 8 7 8 1 Terminals 69 | . 8 . 2 . 1 1 4 1 3 . 2 3 1 1 . . 1 4 2 . 1 3 4 7 3 . 8 4 4 1 Fabricators 6 | . . . . . . . . . 1 . 1 . 1 . . . . . . . . . 1 . . . . 1 1 . Repair Stations 7 | . 1 . 1 . 1 . . . . . 1 . 1 . . . 1 . . . . . . . . . . . 1 . Recycling Units 4 | . 2 . 1 . . . . . . . . . . . . . . . . . . . . . . . . 1 . . Scanalyzers 2 | . . . 1 . . . . . . . . . . . . . . . . . . . . . . . . . 1 . Garrison Access 12 | . . . . . 1 . 1 . . . 2 . 1 . . . 2 . 1 . 1 . 1 . . . . 1 1 . Total Hacks 264 | . 34 . 25 1 8 3 12 3 6 . 18 5 9 2 . . 6 6 5 . 5 6 18 16 7 . 19 24 25 1 Successful 131 | . 20 . 18 1 4 1 7 . 1 . 9 3 7 2 . . 4 1 2 . 2 1 11 6 5 . 10 7 9 . Failed 132 | . 13 . 7 . 4 2 5 3 5 . 9 2 2 . . . 2 5 3 . 3 5 7 10 2 . 9 17 16 1 Catastrophic 36 | . 1 . . . . . 1 1 3 . . . 1 . . . 2 1 1 . . 1 1 2 1 . 2 8 9 1 Database Lockouts 1 | . 1 . . . . . . . . . . . . . . . . . . . . . . . . . . . . . Manual 90 | . 15 . 9 . 3 . 8 . 1 . 8 1 7 1 . . 1 . 2 . 1 . 8 . 1 . 8 5 11 . Terminals 187 | . 26 . 11 . 3 3 10 3 5 . 7 5 4 2 . . 1 6 4 . 4 6 8 16 7 . 19 19 17 1 Fabricators 17 | . . . . . . . . . 1 . 2 . 2 . . . . . . . . . 8 . . . . 2 2 . Repair Stations 27 | . 2 . 11 . 4 . . . . . 4 . 1 . . . 2 . . . . . . . . . . . 3 . Recycling Units 9 | . 6 . 1 . . . . . . . . . . . . . . . . . . . . . . . . 2 . . Scanalyzers 3 | . . . 2 . . . . . . . . . . . . . . . . . . . . . . . . . 1 . Garrison Access 20 | . . . . . 1 . 2 . . . 5 . 2 . . . 3 . 1 . 1 . 2 . . . . 1 2 . Terminal Hacks 59 | . 13 . 4 1 . 1 3 . 1 . 1 3 2 1 . . . 1 1 . . 1 3 6 5 . 5 4 3 . Record 6 | . . . . . . . . . . . . . . . . . . . . . . . . . 5 . . 1 . . Part Schematic 3 | . 2 . . . . . . . . . . . . . . . . . . . . . . . . . . 1 . . Robot Schematic 1 | . 1 . . . . . . . . . . . . . . . . . . . . . . . . . . . . . Robot Analysis 1 | . . . 1 . . . . . . . . . . . . . . . . . . . . . . . . . . . Prototype ID Bank 3 | . 2 . 1 . . . . . . . . . . . . . . . . . . . . . . . . . . . Open Door 7 | . . . . 1 . . . . . . . 1 . . . . . . . . . . . 5 . . . . . . Level Access Points 1 | . . . . . . . . . . . . . . . . . . . . . . . . . . . 1 . . . Branch Access Points 4 | . 1 . 1 . . . 1 . . . . . . . . . . . . . . . 1 . . . . . . . Emergency Access Points 7 | . 1 . . . . 1 . . . . . 1 . 1 . . . 1 . . . . . . . . 2 . . . Terminal Index 2 | . . . . . . . . . 1 . . . . . . . . . . . . . . . . . . . 1 . Fabricator Index 1 | . . . . . . . . . . . . . . . . . . . . . . . . . . . . 1 . . Unreport Threat 6 | . 2 . . . . . . . . . . . 2 . . . . . 1 . . . 1 . . . . . . . Locate Traps 7 | . 1 . . . . . 2 . . . 1 . . . . . . . . . . . 1 1 . . 1 . . . Maintenance Status 1 | . . . . . . . . . . . . . . . . . . . . . . . . . . . 1 . . . Hauler Manifests 3 | . 2 . 1 . . . . . . . . . . . . . . . . . . . . . . . . . . . Registered Components 2 | . . . . . . . . . . . . . . . . . . . . . . . . . . . . 1 1 . Registered Prototypes 1 | . . . . . . . . . . . . . . . . . . . . . . . . . . . . . 1 . Zone Layout 1 | . 1 . . . . . . . . . . . . . . . . . . . . . . . . . . . . . Garrison Registry 1 | . . . . . . . . . . . . . . . . . . . . . . 1 . . . . . . . . Security Stations 1 | . . . . . . . . . . . . 1 . . . . . . . . . . . . . . . . . . Fabricator Hacks 6 | . . . . . . . . . . . 1 . . . . . . . . . . . 3 . . . . . 2 . Network Status 2 | . . . . . . . . . . . 1 . . . . . . . . . . . 1 . . . . . . . Load Schematic 2 | . . . . . . . . . . . . . . . . . . . . . . . 1 . . . . . 1 . Build 2 | . . . . . . . . . . . . . . . . . . . . . . . 1 . . . . . 1 . Repair Station Hacks 15 | . 2 . 9 . 2 . . . . . 2 . . . . . . . . . . . . . . . . . . . Scan Component 8 | . 1 . 5 . 1 . . . . . 1 . . . . . . . . . . . . . . . . . . . Repair 7 | . 1 . 4 . 1 . . . . . 1 . . . . . . . . . . . . . . . . . . . Recycling Unit Hacks 4 | . 2 . 1 . . . . . . . . . . . . . . . . . . . . . . . . 1 . . Retrieve Components 4 | . 2 . 1 . . . . . . . . . . . . . . . . . . . . . . . . 1 . . Scanalyzer 3 | . . . 2 . . . . . . . . . . . . . . . . . . . . . . . . . 1 . Insert Component 2 | . . . 1 . . . . . . . . . . . . . . . . . . . . . . . . . 1 . Analyze 1 | . . . 1 . . . . . . . . . . . . . . . . . . . . . . . . . . . Garrison Access Hacks 16 | . . . . . 1 . 1 . . . 2 . 2 . . . 3 . 1 . 1 . 2 . . . . 1 2 . Unlock Access 10 | . . . . . 1 . 1 . . . 2 . 1 . . . 2 . 1 . 1 . . . . . . . 1 . Seal Access 2 | . . . . . . . . . . . . . . . . . . . . . . . 1 . . . . 1 . . Coupler Status 4 | . . . . . . . . . . . . . 1 . . . 1 . . . . . 1 . . . . . 1 . Unauthorized Hacks 28 | . 3 . 2 . 1 . 3 . . . 3 . 3 1 . . 1 . . . 1 . 3 . . . 5 1 1 . Terminals 19 | . 1 . 2 . 1 . 2 . . . 2 . 1 1 . . . . . . 1 . 1 . . . 5 1 1 . Botnet 13 | . 1 . 2 . 1 . 1 . . . 1 . 1 1 . . . . . . . . 1 . . . 2 1 1 . Operators 3 | . . . . . . . 1 . . . 1 . . . . . . . . . 1 . . . . . . . . . Sabotage 3 | . . . . . . . . . . . . . . . . . . . . . . . . . . . 3 . . . Fabricators 3 | . . . . . . . . . . . . . 1 . . . . . . . . . 2 . . . . . . . Prioritize 1 | . . . . . . . . . . . . . . . . . . . . . . . 1 . . . . . . . Liberate 2 | . . . . . . . . . . . . . 1 . . . . . . . . . 1 . . . . . . . Repair Stations 2 | . . . . . . . . . . . . . 1 . . . 1 . . . . . . . . . . . . . Mechanics 2 | . . . . . . . . . . . . . 1 . . . 1 . . . . . . . . . . . . . Recycling Units 2 | . 2 . . . . . . . . . . . . . . . . . . . . . . . . . . . . . Tunnel 2 | . 2 . . . . . . . . . . . . . . . . . . . . . . . . . . . . . Scanalyzers . | . . . . . . . . . . . . . . . . . . . . . . . . . . . . . . . Garrison Access 2 | . . . . . . . 1 . . . 1 . . . . . . . . . . . . . . . . . . . Restock 2 | . . . . . . . 1 . . . 1 . . . . . . . . . . . . . . . . . . . Data Cores Recovered 3 | . . . . . . . 1 . . . 1 . . . . . . . 1 . . . . . . . . . . . Used . | . . . . . . . . . . . . . . . . . . . . . . . . . . . . . . . Hacking Detections 79 | . 9 . 3 . 1 1 4 1 4 . 5 1 3 1 . . 2 4 3 . 2 3 5 5 3 . 4 6 8 1 Full Trace Events 5 | . 1 . . . . . . . . . . . . . . . . . . . . . 1 2 . . . . 1 . Feedback Events . | . . . . . . . . . . . . . . . . . . . . . . . . . . . . . . . Feedback Blocked . | . . . . . . . . . . . . . . . . . . . . . . . . . . . . . . . Robot Schematics Acquired 1 | . 1 . . . . . . . . . . . . . . . . . . . . . . . . . . . . . Robots Built 1 | . . . . . . . . . . . . . . . . . . . . . . . 1 . . . . . . . Authchips . | . . . . . . . . . . . . . . . . . . . . . . . . . . . . . . . Time 40 | . . . . . . . . . . . . . . . . . . . . . . . 40 . . . . . . . Total Robot Build Rating 1 | . . . . . . . . . . . . . . . . . . . . . . . 1 . . . . . . . Part Schematics Acquired 4 | . 2 . 1 . . . . . . . . . . . . . . . . . . . . . . . . 1 . . Parts Built 2 | . . . . . . . . . . . . . . . . . . . . . . . . . . . . . 2 . Authchips . | . . . . . . . . . . . . . . . . . . . . . . . . . . . . . . . Time 58 | . . . . . . . . . . . . . . . . . . . . . . . . . . . . . 58 . Total Part Build Rating 14 | . . . . . . . . . . . . . . . . . . . . . . . . . . . . . 14 . Parts Repaired 7 | . 1 . 4 . 1 . . . . . 1 . . . . . . . . . . . . . . . . . . . Time 206 | . 26 . 110 . 26 . . . . . 44 . . . . . . . . . . . . . . . . . . . Parts Recycled . | . . . . . . . . . . . . . . . . . . . . . . . . . . . . . . . Recycled Matter . | . . . . . . . . . . . . . . . . . . . . . . . . . . . . . . . Retrieved Matter . | . . . . . . . . . . . . . . . . . . . . . . . . . . . . . . . Retrieved Components 21 | . 10 . 1 . . . . . . . . . . . . . . . . . . . . . . . . 10 . . Parts Scanalyzed 1 | . . . 1 . . . . . . . . . . . . . . . . . . . . . . . . . . . Part Schematics Acquired 1 | . . . 1 . . . . . . . . . . . . . . . . . . . . . . . . . . . Parts Damaged . | . . . . . . . . . . . . . . . . . . . . . . . . . . . . . . . Bothacking | -11 -10 -10 -9 -9 -8 -8 -8 -8 -7 -7 -7 -7 -7 -7 -6 -6 -6 -6 -5 -5 -5 -5 -4 -4 -4 -4 -4 -3 -3 -3 ------------ Run | Yrd Mat Min Mat Min Mat Gar Mat Gar Fac Was Fac Gar Fac Gar Fac Was Fac Gar Fac Gar Fac Gar Fac Ext Cet Arc Hub Res Tes Gar Used RIF Installer 9 | . . . . . . 1 . 1 . . . 2 . 1 . . . 1 . 2 . 1 . . . . . . . . Hotswap 1 | . . . . . . . . . . . . 1 . . . . . . . . . . . . . . . . . . Threat Obfuscator 2 | . . . . . . . . . . . . . . . . . . 1 . . . 1 . . . . . . . . Robot Detection 1 | . . . . . . . . 1 . . . . . . . . . . . . . . . . . . . . . . Alert ID Control 1 | . . . . . . . . . . . . . . . . . . . . 1 . . . . . . . . . . Structural Interface 1 | . . . . . . . . . . . . . . 1 . . . . . . . . . . . . . . . . Program Shield 1 | . . . . . . . . . . . . . . . . . . . . 1 . . . . . . . . . . Autoassimilate 1 | . . . . . . . . . . . . 1 . . . . . . . . . . . . . . . . . . Robots Hacked 132 | . . . . . . . . 3 1 5 . 13 3 5 2 6 6 11 10 16 4 12 7 9 1 1 10 3 3 1 Non-combat 19 | . . . . . . . . . 1 . . . 1 . . . 3 . 1 . 2 . 4 3 . 1 1 . 2 . Combat 113 | . . . . . . . . 3 . 5 . 13 2 5 2 6 3 11 9 16 2 12 3 6 1 . 9 3 1 1 Autoassimilated 23 | . . . . . . . . . . . . . . 2 1 . . . 3 4 . 2 1 4 . . 3 2 1 . Robot Hacks Applied 132 | . . . . . . . . 3 1 5 . 14 3 3 1 9 7 15 10 13 4 10 10 8 1 1 8 1 4 1 parse_system 21 | . . . . . . . . 1 . . . 3 . . . 3 1 4 . 1 . 1 1 4 1 1 . . . . no_distress 3 | . . . . . . . . . . . . . . . . . . . . . . . . 1 . . 1 . 1 . find_chute 1 | . . . . . . . . . 1 . . . . . . . . . . . . . . . . . . . . . map_walls 3 | . . . . . . . . . . . . . . . . . . . . . 1 . . 1 . . . . 1 . find_fabricator 1 | . . . . . . . . . . . . . . . . . . . . . . . 1 . . . . . . . drop_inventory 3 | . . . . . . . . . . . . . . . . . 1 . . . . . 2 . . . . . . . locate_stockpiles 1 | . . . . . . . . . . . . . . . . . . . . . . . 1 . . . . . . . find_recycling 2 | . . . . . . . . . . . . . . . . . . . . . 1 . 1 . . . . . . . purge_threat 2 | . . . . . . . . . . . . . . . . . . . . . . . 2 . . . . . . . block_reporting 1 | . . . . . . . . . . . . . . . . . . . . . . . . 1 . . . . . . ignore_targets 11 | . . . . . . . . . . 5 . . . . . 6 . . . . . . . . . . . . . . find_garrison 5 | . . . . . . . . . . . . . 1 . 1 . 1 . 1 . . . . . . . . 1 . . disrupt_area 3 | . . . . . . . . . . . . . . . . . . . . . . . . . . . 3 . . . spike_heat 1 | . . . . . . . . . . . . . . . . . . . . 1 . . . . . . . . . . amplify_resonance 3 | . . . . . . . . . . . . 2 . . . . . . . 1 . . . . . . . . . . overwrite_iff 49 | . . . . . . . . 2 . . . 6 . 2 . . 1 8 6 9 2 9 1 . . . 2 . . 1 formatsys_low 7 | . . . . . . . . . . . . . 1 . . . 1 1 1 . . . . 1 . . . . 2 . formatsys_high 15 | . . . . . . . . . . . . 3 1 1 . . 2 2 2 1 . . 1 . . . 2 . . . Relay Couplers Released 130 | . . . . . . 8 3 7 . . 3 19 . 14 . . 1 32 . 11 . 25 3 . . . . . . 4 Machine Destruction 120 | . . . . . . 8 . 7 . . . 19 . 14 . . 1 32 . 11 . 21 3 . . . . . . 4 Programmers 10 | . . . . . . . 3 . . . 3 . . . . . . . . . . 4 . . . . . . . . Attached 44 | . . . . . . 1 1 . 1 . . 5 . 3 1 . 1 12 . 6 . 5 3 . . . 3 . 1 1 Fabnet Peak Effective % . | . . . . . . . . . . . . . . . . . . . . . . . . . . . . . . . Robots Rewired 33 | . . . . . . . . 6 . . . 3 . . . . . 7 . . . 2 . 14 . . . . 1 . Allies Hacked 6 | . . . . . . . . 1 . . 2 . . . . . . . 2 1 . . . . . . . . . . Hacks Repelled . | . . . . . . . . . . . . . . . . . . . . . . . . . . . . . . . Allies | -11 -10 -10 -9 -9 -8 -8 -8 -8 -7 -7 -7 -7 -7 -7 -6 -6 -6 -6 -5 -5 -5 -5 -4 -4 -4 -4 -4 -3 -3 -3 -------- Run | Yrd Mat Min Mat Min Mat Gar Mat Gar Fac Was Fac Gar Fac Gar Fac Was Fac Gar Fac Gar Fac Gar Fac Ext Cet Arc Hub Res Tes Gar Total Allies 170 | . . . . 5 . . . 8 . 18 . 14 4 7 1 . 4 18 9 14 2 16 4 28 5 . 7 2 3 1 Largest Group 22 | . . . . 5 4 . . 4 4 19 16 6 8 11 10 1 2 11 11 2 1 4 1 19 22 18 13 1 3 1 Highest-Rated Group 1389 | . . . . 89 71 . . 84 84 455 371 266 266 416 416 32 55 538 487 58 12 296 148 994 1389 1225 846 40 130 30 Highest-Rated Ally 159 | . . . . 31 31 . . 21 21 35 31 95 95 80 80 32 32 119 119 49 12 148 148 159 159 159 116 40 47 30 Total Orders 13 | . . . . . . . . . . . . . 1 1 . . . . 1 . . . 2 4 . . 1 . 3 . STAY 4 | . . . . . . . . . . . . . . . . . . . . . . . . 2 . . 1 . 1 . FOLLOW 2 | . . . . . . . . . . . . . . . . . . . . . . . . 2 . . . . . . AID 5 | . . . . . . . . . . . . . 1 1 . . . . 1 . . . . . . . . . 2 . EXPLORE 2 | . . . . . . . . . . . . . . . . . . . . . . . 2 . . . . . . . Ally Attacks 1226 | . . . . 43 34 . . 62 54 49 113 46 14 68 37 10 7 59 139 36 5 116 28 104 58 27 95 1 19 2 Total Damage 34239 | . . . . 487 411 . . 1296 1104 1316 1559 1587 403 2744 1344 366 176 1605 4402 669 56 3127 607 4271 1833 1004 3344 18 485 25 Kills 224 | . . . . 9 3 . . 17 15 2 15 11 5 20 9 . 2 11 25 3 . 15 5 19 10 5 22 . 1 . Allies Corrupted 10 | . . . . . . . . . . . . . . . . . . . 1 2 . . . . . . 6 1 . . Allies Melted 2 | . . . . . . . . . . . . . . . 1 . . . . . . . . . . . 1 . . . Intel | -11 -10 -10 -9 -9 -8 -8 -8 -8 -7 -7 -7 -7 -7 -7 -6 -6 -6 -6 -5 -5 -5 -5 -4 -4 -4 -4 -4 -3 -3 -3 ------- Run | Yrd Mat Min Mat Min Mat Gar Mat Gar Fac Was Fac Gar Fac Gar Fac Was Fac Gar Fac Gar Fac Gar Fac Ext Cet Arc Hub Res Tes Gar Active Infowar (turns) 29547 | 179 2875 143 1189 1080 453 1114 871 712 1284 879 1383 1019 597 1389 427 175 990 564 788 1072 639 906 1151 1712 570 786 1902 848 1850 . Sensors 708 | . . . . . . . . . . . . . . . . . . . . . . . . . . . . 431 277 . Terrain 69 | 67 . . . . . . . . 2 . . . . . . . . . . . . . . . . . . . . . Traps 1 | . . . . . . . . . . . . . . . . . . . . . . . . 1 . . . . . . Seismic 22181 | 112 2875 143 1189 1080 453 1114 871 712 1282 879 1383 1019 597 1389 228 1 990 223 788 1072 639 906 1070 . . . 918 248 . . Jamming 10384 | . . . . . . . . . . . . . . . 199 175 990 560 . . . . 793 1711 570 786 1902 848 1850 . Robot Analysis Total 1 | . . . 1 . . . . . . . . . . . . . . . . . . . . . . . . . . . Derelict Logs Recovered 1 | . . . . 1 . . . . . . . . . . . . . . . . . . . . . . . . . . Drone Launches 2 | . . . . . . . . . . . . . . . . . . . . . . . 2 . . . . . . . Drone Recoveries . | . . . . . . . . . . . . . . . . . . . . . . . . . . . . . . . Exploration | -11 -10 -10 -9 -9 -8 -8 -8 -8 -7 -7 -7 -7 -7 -7 -6 -6 -6 -6 -5 -5 -5 -5 -4 -4 -4 -4 -4 -3 -3 -3 ------------- Run | Yrd Mat Min Mat Min Mat Gar Mat Gar Fac Was Fac Gar Fac Gar Fac Was Fac Gar Fac Gar Fac Gar Fac Ext Cet Arc Hub Res Tes Gar Turns Passed 38459 | 327 2978 279 1441 1080 453 1162 1415 1195 1287 879 1440 1637 597 1431 429 366 990 2579 1046 1579 1024 1924 1502 1754 570 847 1902 848 2467 1031 Spaces Moved 15873 | 143 1143 72 436 432 148 409 441 396 512 388 718 820 341 769 231 138 563 899 362 542 323 680 679 903 281 336 956 447 1040 325 Core 16 | 14 . . . . . . . . . . . . . . . . . . . . . . . . . . . . . 2 Treads 15621 | 129 1143 72 436 432 148 409 441 396 512 388 718 820 341 769 231 138 563 835 362 542 323 680 679 903 281 336 956 447 1040 151 Legs 66 | . . . . . . . . . . . . . . . . . . 64 . . . . . . . . . . . 2 Wheels . | . . . . . . . . . . . . . . . . . . . . . . . . . . . . . . . Hover 170 | . . . . . . . . . . . . . . . . . . . . . . . . . . . . . . 170 Flight . | . . . . . . . . . . . . . . . . . . . . . . . . . . . . . . . Fastest Speed 50 | 50 160 320 240 240 240 243 243 240 240 160 160 160 160 160 160 160 160 160 240 157 237 152 152 145 145 160 160 152 152 166 Average Speed 192 | 157 192 320 240 240 241 243 243 242 240 164 160 160 160 160 160 160 160 225 240 238 237 229 175 160 152 160 160 152 169 249 Slowest Speed 1600 | 160 320 320 240 240 243 243 243 246 240 240 160 160 160 160 160 240 160 540 240 245 237 237 232 232 160 160 160 160 173 1600 Overloaded Moves . | . . . . . . . . . . . . . . . . . . . . . . . . . . . . . . . Propulsion Burnouts . | . . . . . . . . . . . . . . . . . . . . . . . . . . . . . . . Robots Hopped . | . . . . . . . . . . . . . . . . . . . . . . . . . . . . . . . Potential Cave-ins 4 | . . . . . . . . . . . . . . . . . . . . . . . . . . . 4 . . . Cave-ins Triggered . | . . . . . . . . . . . . . . . . . . . . . . . . . . . . . . . Exploration Rate (%) 51 | 8 99 11 41 86 19 51 41 52 17 90 19 93 12 85 7 75 12 96 12 60 8 96 20 94 83 95 84 10 93 32 Regions Visited 30 Branch Regions 7 Pre-discovered Areas 3 | . 2 1 . . . . . . . . . . . . . . . . . . . . . . . . . . . . Known Exits Taken 13 | . 1 . 1 . 1 . 1 . . . 1 . 1 . . . 1 . 1 . 1 . 1 . . . 1 1 1 . Unknown Exits Taken 6 | 1 . 1 . 1 . . . . . . . . . . . . . . . . . . . 1 1 1 . . . . Scrap Searched 1 | . . . . 1 . . . . . . . . . . . . . . . . . . . . . . . . . . Spaces Dug 210 | . . . . 19 . 33 22 35 . . 1 . 2 12 . . 5 . 3 1 . . 9 6 . . 23 8 31 . Terrain Destroyed 805 | . 27 . 8 48 9 37 47 90 8 . 1 73 2 25 7 13 10 77 7 38 18 20 38 15 1 11 56 20 79 20 Melee . | . . . . . . . . . . . . . . . . . . . . . . . . . . . . . . . Projectile 340 | . . . 2 . 6 . 27 . . . 1 . 2 . 7 13 10 . 7 8 18 20 26 15 1 11 56 20 74 16 AOE 465 | . 27 . 6 48 3 37 20 90 8 . . 73 . 25 . . . 77 . 30 . . 12 . . . . . 5 4 Terrain Rammed . | . . . . . . . . . . . . . . . . . . . . . . . . . . . . . . . Walls Destroyed . | . . . . . . . . . . . . . . . . . . . . . . . . . . . . . . . Machines Disabled . | . . . . . . . . . . . . . . . . . . . . . . . . . . . . . . . Actions | -11 -10 -10 -9 -9 -8 -8 -8 -8 -7 -7 -7 -7 -7 -7 -6 -6 -6 -6 -5 -5 -5 -5 -4 -4 -4 -4 -4 -3 -3 -3 --------- Run | Yrd Mat Min Mat Min Mat Gar Mat Gar Fac Was Fac Gar Fac Gar Fac Was Fac Gar Fac Gar Fac Gar Fac Ext Cet Arc Hub Res Tes Gar Total 21941 | 203 1830 108 760 471 214 511 677 554 556 519 953 996 382 916 267 200 629 1241 488 763 534 940 981 1186 427 645 1228 556 1723 483 Wait 2828 | 24 543 27 185 26 41 5 147 20 11 14 198 33 20 67 10 . 16 98 22 65 157 90 144 120 115 229 93 36 260 12 Move 15845 | 142 1142 71 435 431 148 408 440 395 512 387 717 818 340 768 231 137 562 897 362 540 323 679 678 902 280 335 955 446 1039 325 Hop . | . . . . . . . . . . . . . . . . . . . . . . . . . . . . . . . Pick Up 269 | 7 37 1 23 2 1 10 5 12 4 7 2 12 3 6 2 1 2 24 8 13 3 8 5 5 7 5 15 6 23 10 Fast Attach 173 | 8 2 . 8 . 1 1 . 3 3 2 1 1 1 . . 3 6 21 8 10 3 10 8 8 4 4 6 8 34 9 Attach 92 | . 1 . 3 . 2 5 1 4 2 . 1 5 . 1 3 . . 9 5 4 1 4 2 4 . 3 12 1 6 13 Detach 16 | . . . . . . . . . . 1 . . . . . . . 1 3 . . . . . . 1 2 . 3 5 Swap 408 | 2 24 1 29 4 5 16 20 19 9 3 4 27 3 21 4 9 6 28 12 20 9 32 22 13 1 3 14 14 31 3 Drop 361 | 1 30 1 33 2 2 10 10 17 7 15 2 8 3 9 . 3 8 18 16 19 5 17 13 9 12 6 7 13 60 5 Fire 1850 | 19 51 7 44 6 14 46 54 55 8 90 28 92 12 43 17 47 29 141 51 86 33 84 109 124 8 59 121 32 267 73 Melee . | . . . . . . . . . . . . . . . . . . . . . . . . . . . . . . . Ram 2 | . . . . . . . . . . . . . . . . . . . . . . . . . . . . . . 2 Kick . | . . . . . . . . . . . . . . . . . . . . . . . . . . . . . . . Crush 2 | . . . . . . . . . . . . . . . . . . . 1 . . . . 1 . . . . . . Escape Stasis 71 | . . . . . . 10 . 6 . . . . . . . . . 4 . 6 . 16 . . . . 3 . . 26 Rewire 24 | . . . . . . . . 23 . . . . . 1 . . . . . . . . . . . . . . . . Trap . | . . . . . . . . . . . . . . . . . . . . . . . . . . . . . . . Miscellaneous . | . . . . . . . . . . . . . . . . . . . . . . . . . . . . . . . Route ------- -11/Scrapyard -10/Materials (discovered 6 exits: *Mat x3 / *Min x2 / [*Sub]) -10/Mines -9/Materials -9/Mines (discovered 3 exits: *Mat x2 / [*Zio]) -8/Materials (discovered 3 exits: *Fac / *Sto / Gar) -8/Garrison -8/Materials (discovered 3 exits: *Fac / Sto / Gar) -8/Garrison -7/Factory -7/Waste -7/Factory (discovered 3 exits: *Fac / Gar / Gar) -7/Garrison (discovered 3 exits: *Fac x3) -7/Factory -7/Garrison (discovered 3 exits: *Fac x3) -6/Factory -6/Waste -6/Factory -6/Garrison (discovered 3 exits: *Fac x3) -5/Factory (discovered 2 exits: *Fac / Gar) -5/Garrison -5/Factory (discovered 2 exits: [*Upp] / Gar) -5/Garrison (discovered 3 exits: *Fac x3) -4/Factory (discovered 4 exits: Upp x2 / *Ext x2) -4/Extension (discovered 3 exits: *Res x2 / *Cet) -4/Cetus (discovered 2 exits: *Res / [*Arc]) -4/Archives (discovered 3 exits: *Res / *Hub x2) -4/Hub_04(d) (discovered 4 exits: *Res x4) -3/Research -3/Testing (discovered 2 exits: [*Res] / Gar) -3/Garrison History --------- Turn | Location | Event 4 | -11/Scrapyard | Discovered new exit (range 16) 328 | -11/Scrapyard | Entered Materials 329 | -10/Materials | Build established: Mutant 1300 | -10/Materials | Discovered new exit (range 15) 1314 | -10/Materials | Discovered new exit (range 7) 1356 | -10/Materials | Repaired Lgt. Treads 1705 | -10/Materials | Discovered new exit (range 15) 1724 | -10/Materials | Identified exit to Mines 1850 | -10/Materials | Central database locked down 2103 | -10/Materials | Discovered new exit (range 5) 3306 | -10/Materials | Entered Mines 3333 | -10/Mines | Learned location of Storage (-8) 3521 | -10/Mines | Discovered new exit (range 11) 3585 | -10/Mines | Entered Materials 3585 | -9/Materials | Evolved 2 slots: Propulsion x1, Utility x1 4182 | -9/Materials | Identified exit to Mines 4703 | -9/Materials | Repaired Lgt. Treads 4731 | -9/Materials | Repaired Lgt. Treads 4758 | -9/Materials | Repaired Seismic Detector 4796 | -9/Materials | Repaired Lgt. EM Pulse Cannon 5026 | -9/Materials | Entered Mines 5059 | -9/Mines | Met a Derelict bent on vengeance 5079 | -9/Mines | Met a Derelict shopkeep closing up shop 5228 | -9/Mines | Discovered new exit (range 7) 5229 | -9/Mines | A Derelict revealed a hidden shortcut to a safe place 5982 | -9/Mines | Learned Materials interactive machine intel 6013 | -9/Mines | Assisted by bots powering up and referring to "LRC-V3" 6025 | -9/Mines | Discovered new exit (range 14) 6029 | -9/Mines | Assembled infested the area 6078 | -9/Mines | Destroyed 11 combat bots 6106 | -9/Mines | Entered Materials 6106 | -8/Materials | Accompanied by 4 allies 6106 | -8/Materials | Evolved 2 slots: Utility x2 6107 | -8/Materials | Loaded intel: 19 interactive machine locations 6111 | -8/Materials | Led the pair of lost Derelicts to an unsafe place 6147 | -8/Materials | Repaired Lgt. Treads 6330 | -8/Materials | Discovered new exit (range 13) 6336 | -8/Materials | Discovered new exit (range 12) 6340 | -8/Materials | Garrison activated, responded to threat 6498 | -8/Materials | Lost 3 allies 6559 | -8/Materials | Identified exit to Garrison 6559 | -8/Materials | Entered Garrison 6575 | -8/Garrison | Installed Relay Interface Framework 6785 | -8/Garrison | Build established: Scavenger-Mutant 6845 | -8/Garrison | Triggered checkpoint 6951 | -8/Garrison | Garrison Relay disabled 7205 | -8/Garrison | Triggered checkpoint 7225 | -8/Garrison | Triggered checkpoint 7232 | -8/Garrison | Triggered checkpoint 7257 | -8/Garrison | Destroyed 8 combat bots 7371 | -8/Garrison | Discovered new exit (range 15) 7485 | -8/Garrison | Triggered checkpoint 7512 | -8/Garrison | Garrison Relay disabled 7721 | -8/Garrison | Entered Materials 7816 | -8/Materials | Identified exit to Storage 7832 | -8/Materials | Build established: Mutant 7986 | -8/Materials | Discovered new exit (range 11) 8901 | -8/Materials | Garrison activated, responded to threat 9117 | -8/Materials | Identified exit to Garrison 9136 | -8/Materials | Entered Garrison 9142 | -8/Garrison | Triggered checkpoint 9166 | -8/Garrison | Triggered checkpoint 9201 | -8/Garrison | Garrison Relay disabled 9215 | -8/Garrison | Core integrity fell below 50% 9330 | -8/Garrison | Triggered checkpoint 9494 | -8/Garrison | Triggered checkpoint 9567 | -8/Garrison | Triggered checkpoint 9691 | -8/Garrison | Triggered checkpoint 9755 | -8/Garrison | Expanded RIF knowledge: Robot Detection 9809 | -8/Garrison | Garrison Relay disabled 9852 | -8/Garrison | Triggered checkpoint 9872 | -8/Garrison | Triggered checkpoint 9900 | -8/Garrison | Triggered checkpoint 9982 | -8/Garrison | Build established: Bothacker-Mutant 10221 | -8/Garrison | Discovered new exit (range 16) 10331 | -8/Garrison | Entered Factory 10331 | -7/Factory | Accompanied by 4 allies 10331 | -7/Factory | Evolved 2 slots: Propulsion x1, Utility x1 10731 | -7/Factory | First assault squad dispatched 10934 | -7/Factory | Lost 3 allies 11618 | -7/Factory | Sucked down chute 11618 | -7/Factory | Entered Waste 11628 | -7/Waste | 1 allies followed down the chute 11662 | -7/Waste | Spotted C-40 Crusher 11684 | -7/Waste | Destroyed C-40 Crusher 11693 | -7/Waste | Spotted C-40 Crusher 11704 | -7/Waste | Destroyed C-40 Crusher 11731 | -7/Waste | Spotted C-40 Crusher 11740 | -7/Waste | Spotted C-40 Crusher 11744 | -7/Waste | Spotted C-40 Crusher 11838 | -7/Waste | Spotted C-40 Crusher 11879 | -7/Waste | Discovered new exit (range 12) 11904 | -7/Waste | Destroyed C-40 Crusher 11949 | -7/Waste | Allies destroyed C-40 Crusher 11991 | -7/Waste | Destroyed C-40 Crusher 12088 | -7/Waste | Allies destroyed C-40 Crusher 12295 | -7/Waste | Warlord forces began an assault 12497 | -7/Waste | Entered Factory 12497 | -7/Factory | Accompanied by 16 allies 12635 | -7/Factory | Lost 3 allies 12801 | -7/Factory | Identified exit to Garrison 12986 | -7/Factory | Repaired Plasma Cannon 13486 | -7/Factory | Discovered new exit (range 9) 13799 | -7/Factory | Identified exit to Garrison 13831 | -7/Factory | Garrison activated, responded to threat 13869 | -7/Factory | Lost 6 allies 13937 | -7/Factory | Entered Garrison 13937 | -7/Garrison | Accompanied by 2 allies 14011 | -7/Garrison | Triggered checkpoint 14089 | -7/Garrison | Garrison Relay disabled 14355 | -7/Garrison | Learned Factory security intel 14433 | -7/Garrison | Phase Generator disabled 14531 | -7/Garrison | Expanded RIF knowledge: Hotswap 14621 | -7/Garrison | Triggered checkpoint 14695 | -7/Garrison | Triggered checkpoint 14723 | -7/Garrison | Discovered new exit (range 15) 14868 | -7/Garrison | Garrison Relay disabled 14906 | -7/Garrison | Spotted B-75 Beast 14917 | -7/Garrison | Allies destroyed B-75 Beast 14951 | -7/Garrison | Garrison Relay disabled 15043 | -7/Garrison | Triggered checkpoint 15114 | -7/Garrison | Discovered new exit (range 10) 15135 | -7/Garrison | Expanded RIF knowledge: Autoassimilate 15173 | -7/Garrison | Triggered checkpoint 15194 | -7/Garrison | Garrison Relay disabled 15231 | -7/Garrison | Found embedded Infiltrators 15295 | -7/Garrison | Triggered checkpoint 15352 | -7/Garrison | Garrison Relay disabled 15371 | -7/Garrison | Triggered checkpoint 15420 | -7/Garrison | Build established: Botlord-Mutant 15478 | -7/Garrison | Discovered new exit (range 10) 15574 | -7/Garrison | Entered Factory 15574 | -7/Factory | Accompanied by 6 allies 15974 | -7/Factory | First assault squad dispatched 16168 | -7/Factory | Identified exit to Garrison 16171 | -7/Factory | Entered Garrison 16171 | -7/Garrison | Accompanied by 8 allies 16349 | -7/Garrison | Triggered checkpoint 16382 | -7/Garrison | Garrison Relay disabled 16441 | -7/Garrison | Triggered checkpoint 16450 | -7/Garrison | Triggered checkpoint 16455 | -7/Garrison | Triggered checkpoint 16638 | -7/Garrison | Triggered checkpoint 16699 | -7/Garrison | Triggered checkpoint 16718 | -7/Garrison | Garrison Relay disabled 16790 | -7/Garrison | Discovered new exit (range 12) 16823 | -7/Garrison | H-XX Assembler disabled 17096 | -7/Garrison | Discovered new exit (range 12) 17109 | -7/Garrison | Expanded RIF knowledge: Structural Interface 17139 | -7/Garrison | Triggered checkpoint 17153 | -7/Garrison | Found embedded Infiltrators 17193 | -7/Garrison | Garrison Relay disabled 17340 | -7/Garrison | Spotted B-75 Beast 17355 | -7/Garrison | Allies destroyed B-75 Beast 17397 | -7/Garrison | Discovered new exit (range 5) 17427 | -7/Garrison | Triggered checkpoint 17429 | -7/Garrison | Garrison Relay disabled 17602 | -7/Garrison | Entered Factory 17602 | -6/Factory | Accompanied by 10 allies 17602 | -6/Factory | Evolved 2 slots: Utility x2 17688 | -6/Factory | Spotted B-75 Beast 17703 | -6/Factory | Destroyed B-75 Beast 17732 | -6/Factory | Lost 3 allies 17852 | -6/Factory | Lost 4 allies 17952 | -6/Factory | First assault squad dispatched 18031 | -6/Factory | Sucked down chute 18031 | -6/Factory | Entered Waste 18041 | -6/Waste | 1 allies followed down the chute 18046 | -6/Waste | EMP discharged 18083 | -6/Waste | Spotted C-40 Crusher 18089 | -6/Waste | Spotted C-40 Crusher 18098 | -6/Waste | Spotted C-40 Crusher 18103 | -6/Waste | Spotted C-40 Crusher 18146 | -6/Waste | EMP discharged 18146 | -6/Waste | System corruption reached 10% 18176 | -6/Waste | Spotted C-40 Crusher 18199 | -6/Waste | Destroyed C-40 Crusher 18246 | -6/Waste | EMP discharged 18246 | -6/Waste | Destroyed C-40 Crusher 18258 | -6/Waste | Spotted C-40 Crusher 18283 | -6/Waste | Destroyed C-40 Crusher 18322 | -6/Waste | Destroyed C-40 Crusher 18346 | -6/Waste | EMP discharged 18346 | -6/Waste | System corruption reached 30% 18370 | -6/Waste | Discovered new exit (range 16) 18397 | -6/Waste | Entered Factory 18554 | -6/Factory | Found Rocket Array 19000 | -6/Factory | Identified exit to Garrison 19307 | -6/Factory | Identified exit to Garrison 19387 | -6/Factory | Entered Garrison 19387 | -6/Garrison | Accompanied by 1 ally 19468 | -6/Garrison | Triggered checkpoint 19516 | -6/Garrison | Garrison Relay disabled 19550 | -6/Garrison | Found Relay Coupler [Proto] 19553 | -6/Garrison | Found Relay Coupler [Proto] 19558 | -6/Garrison | Found Relay Coupler [Proto] 19573 | -6/Garrison | P-60 Hacker assimilated allied Smith 5a 19596 | -6/Garrison | Found Relay Coupler [Proto] 19742 | -6/Garrison | Spotted B-75 Beast 19834 | -6/Garrison | Destroyed B-75 Beast 19864 | -6/Garrison | Lost 6 parts (2n3u1w) 19919 | -6/Garrison | Triggered checkpoint 19988 | -6/Garrison | Triggered checkpoint 20006 | -6/Garrison | Triggered checkpoint 20093 | -6/Garrison | Triggered checkpoint 20158 | -6/Garrison | Lost 3 parts (2n1w) 20207 | -6/Garrison | Garrison Relay disabled 20381 | -6/Garrison | Discovered new exit (range 10) 20501 | -6/Garrison | Lost 4 parts (1n2u1w) 20503 | -6/Garrison | Garrison Relay disabled 20509 | -6/Garrison | Garrison Relay disabled 20569 | -6/Garrison | Garrison Relay disabled 20577 | -6/Garrison | Garrison Relay disabled 20659 | -6/Garrison | Triggered checkpoint 20762 | -6/Garrison | Garrison Relay disabled 20793 | -6/Garrison | Triggered checkpoint 20848 | -6/Garrison | Expanded RIF knowledge: Threat Obfuscation 20895 | -6/Garrison | Discovered new exit (range 15) 21112 | -6/Garrison | Discovered new exit (range 14) 21251 | -6/Garrison | Found embedded Infiltrators 21423 | -6/Garrison | Garrison Relay disabled 21573 | -6/Garrison | Triggered checkpoint 21619 | -6/Garrison | Triggered checkpoint 21682 | -6/Garrison | Spotted Striker 21691 | -6/Garrison | Rewired Executioner 21708 | -6/Garrison | Allies destroyed Striker 21966 | -6/Garrison | Entered Factory 21966 | -5/Factory | Accompanied by 10 allies 21966 | -5/Factory | Evolved 2 slots: Power x1, Utility x1 22474 | -5/Factory | Discovered new exit (range 9) 22566 | -5/Factory | First assault squad dispatched 22802 | -5/Factory | Lost 11 allies 22849 | -5/Factory | P-70 Sage assimilated allied Soldier 6d 23012 | -5/Factory | Identified exit to Garrison 23012 | -5/Factory | Entered Garrison 23194 | -5/Garrison | Expanded RIF knowledge: Alert ID Control 23377 | -5/Garrison | Garrison Relay disabled 23674 | -5/Garrison | Triggered checkpoint 23733 | -5/Garrison | Lost 3 allies 23843 | -5/Garrison | Spotted B-75 Beast 23845 | -5/Garrison | Lost 3 allies 23874 | -5/Garrison | Expanded RIF knowledge: Program Shield 24060 | -5/Garrison | Discovered new exit (range 13) 24170 | -5/Garrison | Triggered checkpoint 24217 | -5/Garrison | Garrison Relay disabled 24348 | -5/Garrison | Triggered checkpoint 24480 | -5/Garrison | Garrison Relay disabled 24591 | -5/Garrison | Entered Factory 24716 | -5/Factory | Discovered new exit (range 7) 25173 | -5/Factory | Garrison activated, responded to threat 25615 | -5/Factory | Identified exit to Garrison 25615 | -5/Factory | Entered Garrison 25621 | -5/Garrison | Triggered checkpoint 25693 | -5/Garrison | Triggered checkpoint 25727 | -5/Garrison | Garrison Relay disabled 25804 | -5/Garrison | Found embedded Infiltrators 26025 | -5/Garrison | Lost 4 allies 26057 | -5/Garrison | Triggered checkpoint 26071 | -5/Garrison | Triggered checkpoint 26082 | -5/Garrison | Triggered checkpoint 26132 | -5/Garrison | Lost 3 allies 26217 | -5/Garrison | Triggered checkpoint 26273 | -5/Garrison | Garrison Relay disabled 26327 | -5/Garrison | Discovered new exit (range 8) 26680 | -5/Garrison | Discovered new exit (range 12) 26813 | -5/Garrison | Triggered checkpoint 26885 | -5/Garrison | Expanded RIF knowledge: Threat Obfuscation 26956 | -5/Garrison | Garrison Relay disabled 26971 | -5/Garrison | Discovered new exit (range 7) 26971 | -5/Garrison | Discovered new exit (range 57) 26971 | -5/Garrison | Discovered new exit (range 50) 27178 | -5/Garrison | Garrison Relay disabled 27233 | -5/Garrison | Rescued a captive Derelict 27274 | -5/Garrison | Garrison Relay disabled 27345 | -5/Garrison | Spotted B-86 Titan 27350 | -5/Garrison | Rewired B-90 Cyclops 27357 | -5/Garrison | Rewired B-90 Cyclops 27357 | -5/Garrison | Allies destroyed B-86 Titan 27477 | -5/Garrison | Found Quantum Capacitor 27539 | -5/Garrison | Entered Factory 27539 | -4/Factory | Accompanied by 1 ally 27539 | -4/Factory | Evolved 2 slots: Utility x2 27583 | -4/Factory | Identified exit to Upper Caves 27583 | -4/Factory | Identified exit to Extension 28048 | -4/Factory | Fabricated M-13 Machinist? 28996 | -4/Factory | Spotted B-86 Titan 29004 | -4/Factory | Assimilated Titan 7a with formatsys_high 29041 | -4/Factory | Entered Extension 29041 | -4/Extension | Accompanied by 1 ally 29322 | -4/Extension | Rescued a captive Derelict 29398 | -4/Extension | Rescued a captive Derelict 29398 | -4/Extension | Rescued a captive Derelict 29430 | -4/Extension | Rescued a captive Derelict 29434 | -4/Extension | Rescued a captive Derelict 29452 | -4/Extension | Lost 3 allies 30024 | -4/Extension | Spotted B-86 Titan 30045 | -4/Extension | Spotted B-86 Titan 30054 | -4/Extension | Allies destroyed B-86 Titan 30058 | -4/Extension | Destroyed B-86 Titan 30085 | -4/Extension | Lost 5 allies 30087 | -4/Extension | Discovered new exit (range 3) 30224 | -4/Extension | Rescued A7 30292 | -4/Extension | Rescued a captive Derelict 30331 | -4/Extension | Rescued a captive Derelict 30332 | -4/Extension | Rescued a captive Derelict 30543 | -4/Extension | Rescued a captive Derelict 30612 | -4/Extension | Discovered new exit (range 10) 30613 | -4/Extension | Discovered new exit (range 6) 30795 | -4/Extension | Entered Cetus 30795 | -4/Cetus | Accompanied by 19 allies (A7) 30800 | -4/Cetus | Acquired a Cetus Manufacturing Module code from A7 30813 | -4/Cetus | Spotted Cetus Guard 30822 | -4/Cetus | Allies destroyed Cetus Guard 30822 | -4/Cetus | Spotted Cetus Guard 30823 | -4/Cetus | Spotted Cetus Guard 30837 | -4/Cetus | Allies destroyed Cetus Guard 30838 | -4/Cetus | Allies destroyed Cetus Guard 30932 | -4/Cetus | Started Cetus Manufacturing Module 30947 | -4/Cetus | Escorted A7 to Cetus Mainframe 30957 | -4/Cetus | Manufactured an Enhanced Grunt 30982 | -4/Cetus | Manufactured an Enhanced Grunt 31007 | -4/Cetus | Manufactured an Enhanced Grunt 31032 | -4/Cetus | Manufactured an Enhanced Grunt 31057 | -4/Cetus | Manufactured an Enhanced Grunt 31106 | -4/Cetus | Discovered new exit (range 15) 31154 | -4/Cetus | Spotted Cetus Guard 31165 | -4/Cetus | Spotted Cetus Guard 31166 | -4/Cetus | Spotted Cetus Guard 31166 | -4/Cetus | Allies destroyed Cetus Guard 31167 | -4/Cetus | Spotted Cetus Guard 31171 | -4/Cetus | Allies destroyed Cetus Guard 31175 | -4/Cetus | Allies destroyed Cetus Guard 31178 | -4/Cetus | Allies destroyed Cetus Guard 31189 | -4/Cetus | Discovered new exit (range 16) 31196 | -4/Cetus | Met Revision 17 31365 | -4/Cetus | Entered Archives 31365 | -4/Archives | Accompanied by 18 allies (A7) 31370 | -4/Archives | Received a hacking code to weaken MAIN.C 31427 | -4/Archives | Lost 3 allies 31459 | -4/Archives | Discovered new exit (range 16) 31516 | -4/Archives | Discovered new exit (range 15) 31650 | -4/Archives | Discovered new exit (range 15) 32212 | -4/Archives | Entered Hub_04(d) 32212 | -4/Hub_04(d) | Accompanied by 13 allies 32234 | -4/Hub_04(d) | Discovered new exit (range 15) 32387 | -4/Hub_04(d) | Identified exit to Research 32675 | -4/Hub_04(d) | Network Hub disabled 32681 | -4/Hub_04(d) | Spotted Lightning 32727 | -4/Hub_04(d) | Spotted Lightning 32729 | -4/Hub_04(d) | Lost 9 allies 32729 | -4/Hub_04(d) | Spotted Lightning 32742 | -4/Hub_04(d) | Destroyed Lightning 32764 | -4/Hub_04(d) | Assimilated Lightning with formatsys_high 32792 | -4/Hub_04(d) | Destroyed Lightning 32805 | -4/Hub_04(d) | Lost 5 parts (3u2w) 32836 | -4/Hub_04(d) | Found Prototype Processor 32849 | -4/Hub_04(d) | Found Prototype Energy Cannon 32856 | -4/Hub_04(d) | Found Prototype Device 32857 | -4/Hub_04(d) | Identified Exp. EM Shield 32867 | -4/Hub_04(d) | Found Prototype Processor 32867 | -4/Hub_04(d) | Identified Exp. Targeting Computer (x2) 33039 | -4/Hub_04(d) | Spotted B-86 Titan 33086 | -4/Hub_04(d) | Assimilated Titan 7b with formatsys_high 33087 | -4/Hub_04(d) | Core integrity fell below 50% 33355 | -4/Hub_04(d) | Network Hub disabled 33561 | -4/Hub_04(d) | Network Hub disabled 33913 | -4/Hub_04(d) | Spotted Lightning 34008 | -4/Hub_04(d) | System corruption reached 10% 34068 | -4/Hub_04(d) | Network Hub disabled 34114 | -4/Hub_04(d) | Entered Research 34114 | -3/Research | Evolved 2 slots: Propulsion x2 34311 | -3/Research | Discovered new exit (range 6) 34314 | -3/Research | Revision forces began assault on 0b10 34372 | -3/Research | Met up with Revision 17++ 34465 | -3/Research | Identified exit to Testing 34814 | -3/Research | Research terminal network offline 34962 | -3/Research | Entered Testing 34997 | -3/Testing | Found Prototype Hackware 35040 | -3/Testing | Identified Ghost Barrier 35085 | -3/Testing | Spotted PL-KY3E131W4R 35313 | -3/Testing | Fabricated Quantum Capacitor? 35690 | -3/Testing | Found Prototype Ballistic Cannon 35690 | -3/Testing | Identified Omega Cannon 35871 | -3/Testing | Identified exit to Garrison 36043 | -3/Testing | Found Prototype Energy Cannon 36428 | -3/Testing | System corruption reached 10% 36486 | -3/Testing | Found Quantum Capacitor 36545 | -3/Testing | P-80 Master assimilated allied Artificer 8a 36589 | -3/Testing | Found Quantum Capacitor 36822 | -3/Testing | Found Prototype Processor 36822 | -3/Testing | Identified Exp. Signal Interpreter 37070 | -3/Testing | Discovered new exit (range 12) 37086 | -3/Testing | Found Prototype Device 37086 | -3/Testing | Identified Exp. Hardlight Generator 37333 | -3/Testing | Garrison activated, responded to threat 37429 | -3/Testing | Entered Garrison 37517 | -3/Garrison | Triggered checkpoint 37569 | -3/Garrison | Spotted B-86 Titan 37575 | -3/Garrison | Identified Imp. Potential Cannon 37633 | -3/Garrison | Destroyed B-86 Titan 37663 | -3/Garrison | Lost 7 parts (1p2n4u) 37668 | -3/Garrison | Found Relay Coupler [Proto] 37671 | -3/Garrison | Found Relay Coupler [Proto] 37804 | -3/Garrison | Garrison Relay disabled 37871 | -3/Garrison | Core integrity fell below 50% 37895 | -3/Garrison | System corruption reached 30% 37928 | -3/Garrison | Lost 6 parts (1p1n3u1w) 38047 | -3/Garrison | Spotted B-86 Titan 38435 | -3/Garrison | Triggered checkpoint 38455 | -3/Garrison | Core integrity fell below 20% 38460 | -3/Garrison | Destroyed by S-43 Plague with Heavy Machine Gun Last Messages --------------- 38426_ Penetrated by Slug. 38426_ Slug penetrates Wall. 38428_ System corrupted: Matter Neutralizer failed to cycle. 38429_ Imp. Antigrav System destroyed. 38430_ Adv. Heat Sink destroyed. 38431_ Mic. Antimatter Reactor destroyed. 38432_ Slammed into Y-72 Warden. 38435_ Penetrated by Slug. 38435_ Adv. Coolant Injector destroyed. 38435_ Slug penetrates Reinforced Barrier. 38438_ Penetrated by Slug. 38438_ Mic. Antimatter Reactor destroyed. 38438_ Slammed into S-43 Plague. 38440_ Myomer Leg destroyed. 38441_ System corrupted: Heat flow error (+118). 38444_ Imp. Antigrav System destroyed. 38446_ Adv. Cooling System destroyed. 38448_ Matter Neutralizer destroyed. 38452_ Relay Coupler [Proto] destroyed. 38457_ 0UB=3LJKSO V5BPLSE2AY5G| FVQ V>SCR Map ----- +----------------------------------------------------+ | ??????????????????????????????????????#" #"! | | ??????????????????????????????????????#" ! # ! | | ??????????????????????????????????????#" ""! # | | ??????????????????????????????????????#" "!! # | | ??????????????????????????????????????#" #"! # | | ??????????????????????????????????????#"" #""+### | | ??????????????????????????????????????### ##" #? | | ????????????????????????????????????????###### ##? | | ?????????????????????????????????????????????###?? | | ?????????????????????????????????????????????????? | | ?????????????????????????????????????????????????? | | ?????????????????????????????????????????????????? | | ?????????????????????????????????????????????????? | | ?????????????????????????????????????????????????? | | ?????????????????????????????##################### | | ?????????????????????????????# | | ?????????????????????????????# ^^ | | ?????????????????????????????# ^^ | | ?????????????????????????????# #######++######## | | ?????????????????????????????# #?????# #????### | | ??????????????????????????#### ####### #????#"" | | ??????????????????????????# BB + #????#"! | | ??????????????????????????# BB ####### #????#"! | | ???????????????????????####Y#" #?????# #????#"! | | ???????????????????????# ss## " ????# #????#"! | | ??????????????????# ## @ ## ###???# #????#"! | | ??????????????????# s s ####### #????#"! | | ??????????????????# + #????#"" | | ??????????????????# ^ + #????#"" | | ??????????????????# ^ ## ;; ##########????#"" | | ??????????????????# ?# ;# #???????????????# | | ??????????????????" ?? "???????????????? | | ??????????????????" ??? "???????????????? | | ??????????????????"??? "???????????????? | | ?????????????????????? g "???????????????? | | ????????????????????? ## ## #???????????????? | | ????????????????????? ?# ## g#???????????????? | | ??????????????????????? ???????????????? | | ?????????????????????? ????????????????? | | ??????????????????????? ??????????????????? | | ???????????????????????#""""##+??????????????????? | | ?????????????????????????????????????????????????? | | ?????????????????????????????????????????????????? | | ?????????????????????????????????????????????????? | | ?????????????????????????????????????????????????? | | ?????????????????????????????????????????????????? | | ?????????????????????????????????????????????????? | | ?????????????????????????????????????????????????? | | ?????????????????????????????????????????????????? | | ?????????????????????????????????????????????????? | +----------------------------------------------------+ Best States ------------- Heat Dissipation 143 Coolant Potential 200 Energy Generation 45 Energy Capacity 750 Matter Stores 300 Matter Capacity 600 Sight Range 16 Robot Scan Range 16 Terrain Scan Range 16 Terrain Scan Density 10 Jamming Range 16 EM Shielding 2 Corruption Containment 12 Armor Coverage 225 Resistance: EM 75 Propulsion Shielding 33 Point Defense Rating 240 Weapon Cycling 25 Evasion (%) 40 Targeting Accuracy 12 Target Analysis 8 Recoil Reduction 6 Offensive Hacking 24 Relay Coupler Types 6 Relay Coupler Value 133 Item Schematics ----------------- Huge Storage Unit | -10/Materials | Hacked Hcp. Storage Unit | -10/Materials | Hacked Shield Generator | -9/Materials | Scanalyzed Quantum Capacitor | -3/Research | Hacked Robot Schematics ------------------ M-13 Machinist | -10/Materials | Hacked Fabricated ------------ M-13 Machinist | x1 | -4/Factory Quantum Capacitor | x2 | -3/Testing Repaired ---------- Lgt. Treads | 31% | -10/Materials Lgt. Treads | 60% | -9/Materials Lgt. Treads | 67% | -9/Materials Seismic Detector | 40% | -9/Materials Lgt. EM Pulse Cannon | 51% | -9/Materials Lgt. Treads | 57% | -8/Materials Plasma Cannon | 56% | -7/Factory Alien Tech Used ----------------- None Achievements -------------- 404 Challenges ------------ None Game ------ Seed FlightAbsorptionDrivehammer Manual? 0 Play Time 05:15:12 Cumulative 296.8 hours Start 2025.06.20 @ 01:14:36 End 2025.06.26 @ 23:16:44 Sessions 45 Manual Loads 0 Difficulty Rogue Special Mode None Game No. 76 Rogue 75 Adventurer 1 Explorer 0 Win Type - Total 26 Types 6/4/7/0/0/0/8/0/0/1 Lore% 64 Gallery% 74 Achievement% 69 Wizard Run 0 Options --------- Layout 0 ASCII 0 Keyboard 0 Movement Mouse Keybinds 0 Fullscreen 1 Font 18/Terminus Map View 76x50 Zoom Use 0% Tactical HUD 1 Map Filters NONE Filters NONE Steam 0 RUN: 484516c9-d1b8-47b8-b70d-50cda79fea3e